{"text_format":"1","workbook":"xlsx","n_sheets":7,"sheets":["請求書提出方法","ダウンロード方法","記入見本","協力業者発行請求書P1","請求内訳書P2","請求内訳書P3","請求内訳書P4"],"not_rendered":{"charts":0,"images":2,"macros":1,"external_links":0,"defined_names":7,"comments":4,"pivot_tables":0},"unopened":[],"bounds":{"document_bytes":16777216,"sheet_cells":100000,"rows_first":2000,"rows_last":500,"rows_between":2000,"halvings":0,"cell_chars":16384,"cell_head_chars":4096},"cells_cut":0,"cells_raw":0,"read":"whole","date_system":"1900"}

{"sheet":"請求書提出方法","index":0,"n_rows":66,"n_cols":29,"rows_kept":66,"cut":false,"hidden":false,"merged":[[4,0,4,34]]}
[]
[null,"お取引先各位"]
[null,null,null,null,null,null,null,null,null,null,null,null,null,null,null,null,null,null,null,null,null,null,null,null,null,null,null,null,"株式会社　堀内組"]
[]
["当社宛請求書のご提出について"]
[]
[null,"　当社に対する、材料・レンタル代又は工事代等の請求の方法については、下記の要領を熟読の上、"]
[null,"ご提出の程、宜しくお願い申し上げます。"]
[]
[null,"【基　本　項　目】"]
[null,"①材料・レンタル代及び工事代金等のご請求は、当社専用請求書様式（Excel版）をご使用下さい。"]
[]
[null,"②請求書は、現場毎に発行して下さい。"]
[]
[null,"③請求書は、月末日締めで翌月５日までに、各現場又は本社までご提出下さい。"]
[null," 　※　提出期限を過ぎた場合は、翌月支払いになることがあります。"]
[null," 　※　暦の関係等で、提出期限に変更がある場合には、現場担当よりご連絡致します。"]
[]
[null,"【請求書の発行】"]
[null,"　 当社専用請求書様式（Eｘｃｅｌ版）を、当社ホームページよりダウンロードして下さい。"]
[null,"　　★　ホームページアドレス　　https://horiuchi-g.co.jp/"]
[null,"　　　　　トップページ　→　企業情報　→　各種資料ダウンロード　→　請求書関係"]
[null,"　　　　[重要]　マクロを設定していますのでブロック解除が必要です。（ダウンロード方法参照）"]
[null,"　 請求書は、取引先用、提出用を作成下さい。"]
[null,"　 お取引先様控えとして、取引先用を保管頂き、提出用１枚をご提出下さい。"]
[]
[null,"【請求書の記入上の注意】"]
[null,"①請求書の『外注請求分』又は『一般請求分』のチェックをご記入下さい。"]
[null,"　 外注請求分で、複数注文書がある場合は、別々に請求書を発行下さい。"]
[null,"　 なお、『外注請求分』と『一般請求分』と両方請求される場合は、別々に請求書を発行下さい。"]
[]
[null,"②取引先コード（７桁）をご記入下さい。（頭は０（ゼロ））"]
[null," 　外注請求の場合は、注文書の左上に記載があります。"]
[null," 　新規登録業者様は、「協力業者登録票」を提出し、取引先コードを取得する必要があります。"]
[null," 　また、登録内容に変更があった場合は、「協力業者登録票」を再度ご提出下さい。"]
[null," 　取引先コードがご不明な場合は、各現場担当にお尋ね下さい。"]
[]
[null,"③お取引先様の住所、会社名、代表者名、電話番号をご記入下さい。"]
[null,"　 ゴム版による押印でも可能です。"]
[]
[null,"④適格請求書発行事業所 登録状況のチェック及び登録番号をご記入下さい。"]
[]
[null,"⑤銀行振込口座の項目については、漏れなくご記入下さい。"]
[]
[null,"⑥契約事項をご記入下さい。（外注請求の場合）"]
[null," 　注文№（１２桁）、支払条件、契約金額は、注文書内に記載があります。"]
[]
[null,"⑦工事コード（１０桁）及び工事名をご記入下さい。"]
[null," 　外注請求の場合は、注文書内に記載があります。"]
[null," 　工事コード及び工事名がご不明な場合は、各現場担当にお尋ね下さい。"]
[null," 　本社又は営業所の場合は、工事コードは空白とし、工事名は、「本社」又は「営業所名」をご記入下さい。"]
[]
[null,"⑧請求内訳（摘要・税区分・数量・単価・金額）をご記入下さい。"]
[null,"　 外注請求の場合は、「第○回　出来高」とご記入も可能です。"]
[null,"　 外注請求（出来高払）に関しては、各現場担当と打合せ・確認の上、ご請求金額をご記入下さい。"]
[null,"　 一般請求の場合は、摘要欄に品名をご記入下さい。"]
[null,"　 お取引先様専用の明細書がある場合は、「別紙明細書の通り」とご記入することも可能です。"]
[null,"　 但し、複数の消費税区分に分かれる場合は、行を分けてご記入下さい。（記入見本参照）"]
[null,"　 消費税区分は、「税区分」欄に、非課税は「非」、８％は「※」をご記入下さい。（１０％は入力無し）"]
[]
[null,"⑨本請求書様式には、計算式を組み込んでおりますので、税区分毎に自動で計算します。"]
[null," 　行や列の挿入や削除、行高や列幅の変更を行わないで下さい。"]
[]
[null,"⑩提出用請求書には、貴社の押印をお願いします。"]
[]
[null,"⑪請求書の作成に際し、ご不明な点は各現場担当又は本社管理部までご連絡下さい。"]

{"sheet":"ダウンロード方法","index":1,"n_rows":1,"n_cols":1,"rows_kept":1,"cut":false,"hidden":false,"merged":[[0,0,0,56]]}
["専用請求書のダウンロード方法"]

{"sheet":"記入見本","index":2,"n_rows":54,"n_cols":78,"rows_kept":54,"cut":false,"hidden":false,"merged":[[1,0,1,14],[3,75,3,76],[3,77,3,78],[3,53,3,54],[3,55,3,60],[3,64,3,68],[3,69,3,70],[3,71,3,72],[3,73,3,74],[3,31,3,43],[3,45,3,46],[3,47,3,52],[6,47,6,52],[6,70,6,78],[5,53,5,54],[5,55,5,69],[5,70,5,71],[5,72,5,78],[6,20,6,24],[6,33,6,46],[5,0,5,15],[5,16,5,18],[5,20,5,24],[5,32,5,46],[5,47,5,52],[7,60,7,62],[7,63,7,68],[7,69,7,75],[7,76,7,78],[7,0,7,18],[7,20,7,24],[7,25,7,46],[7,47,7,52],[7,53,7,59],[8,53,8,54],[8,55,8,57],[8,58,8,59],[8,60,8,62],[8,63,8,68],[8,69,8,78],[8,0,8,6],[8,7,8,18],[8,20,8,24],[8,25,8,43],[8,44,8,46],[8,47,8,52],[12,41,12,78],[12,0,16,1],[10,0,10,6],[10,7,10,18],[10,20,10,24],[10,25,10,46],[10,53,10,78],[9,0,9,6],[9,7,9,18],[9,20,9,24],[9,25,9,46],[9,47,10,52],[9,53,9,78],[13,7,13,9],[13,10,13,11],[13,13,13,15],[13,16,13,17],[13,20,13,21],[13,22,13,37],[13,2,13,6],[12,2,12,6],[12,20,12,24],[12,35,12,40],[15,22,15,37],[13,66,13,71],[13,72,13,78],[13,38,13,40],[13,41,13,44],[13,45,13,47],[13,48,13,53],[13,54,13,61],[13,62,13,65],[16,2,16,6],[16,7,16,18],[16,22,16,37],[16,38,16,40],[16,41,16,44],[15,54,15,61],[15,72,15,78],[14,66,25,71],[14,72,14,78],[14,38,14,40],[14,41,14,44],[14,45,14,47],[14,48,14,53],[14,54,14,61],[14,62,25,65],[15,38,15,40],[15,41,15,44],[15,45,15,47],[15,48,15,53],[14,2,14,6],[14,7,14,18],[14,22,14,37],[15,2,15,6],[15,7,15,18],[17,54,17,61],[17,72,17,78],[17,22,17,37],[17,38,17,40],[17,41,17,44],[17,45,17,47],[17,48,17,53],[16,45,16,47],[16,48,16,53],[16,54,16,61],[16,72,16,78],[18,45,18,47],[18,48,18,53],[18,54,18,61],[18,72,18,78],[18,0,18,10],[18,11,18,18],[18,22,18,37],[18,38,18,40],[18,41,18,44],[19,54,19,61],[19,72,19,78],[19,11,19,18],[19,22,19,37],[19,38,19,40],[19,41,19,44],[19,45,19,47],[19,48,19,53],[19,0,21,1],[19,2,19,10],[20,2,20,10],[21,2,21,10],[21,11,21,18],[21,22,21,37],[21,38,21,40],[21,41,21,44],[21,45,21,47],[21,48,21,53],[20,54,20,61],[20,72,20,78],[20,11,20,18],[20,22,20,37],[20,38,20,40],[20,41,20,44],[20,45,20,47],[20,48,20,53],[22,38,22,40],[22,41,22,44],[22,45,22,47],[22,48,22,53],[22,54,22,61],[22,72,22,78],[21,54,21,61],[21,72,21,78],[22,22,22,37],[23,45,23,47],[23,48,23,53],[23,54,23,61],[23,72,23,78],[23,0,23,10],[23,11,23,18],[23,22,23,37],[23,38,23,40],[23,41,23,44],[24,41,24,44],[24,45,24,47],[24,48,24,53],[24,54,24,61],[24,72,24,78],[24,0,26,1],[24,2,24,10],[24,11,24,18],[24,22,24,37],[24,38,24,40],[25,2,25,10],[25,11,25,18],[25,22,25,37],[25,38,25,40],[26,62,26,78],[26,2,26,10],[26,11,26,18],[26,20,26,53],[26,54,26,61],[25,41,25,44],[25,45,25,47],[25,48,25,53],[25,54,25,61],[25,72,25,78],[32,0,32,15],[32,16,32,18],[32,20,32,24],[32,32,32,46],[32,47,32,52],[30,31,30,43],[30,45,30,46],[30,47,30,52],[30,53,30,54],[32,53,32,54],[32,55,32,69],[32,70,32,71],[32,72,32,78],[33,20,33,24],[33,33,33,46],[33,47,33,52],[33,70,33,78],[30,69,30,70],[30,71,30,72],[30,73,30,74],[30,75,30,76],[30,77,30,78],[30,55,30,60],[30,64,30,68],[34,63,34,68],[34,69,34,75],[34,76,34,78],[35,0,35,6],[35,7,35,18],[35,20,35,24],[35,25,35,43],[35,44,35,46],[35,47,35,52],[35,53,35,54],[34,0,34,18],[34,20,34,24],[34,25,34,46],[34,47,34,52],[34,53,34,59],[34,60,34,62],[36,53,36,78],[37,0,37,6],[37,7,37,18],[37,20,37,24],[37,25,37,46],[37,53,37,78],[35,55,35,57],[35,58,35,59],[35,60,35,62],[35,63,35,68],[35,69,35,78],[36,0,36,6],[36,7,36,18],[36,20,36,24],[36,25,36,46],[36,47,37,52],[39,0,43,1],[39,2,39,6],[39,20,39,24],[39,35,39,40],[39,41,39,78],[40,2,40,6],[40,7,40,9],[40,10,40,11],[40,13,40,15],[40,16,40,17],[41,72,41,78],[42,2,42,6],[42,7,42,18],[42,22,42,37],[42,38,42,40],[42,41,42,44],[42,45,42,47],[42,48,42,53],[40,54,40,61],[40,62,40,65],[40,66,40,71],[40,72,40,78],[41,2,41,6],[41,7,41,18],[40,48,40,53],[43,2,43,6],[43,7,43,18],[43,22,43,37],[43,38,43,40],[43,41,43,44],[43,45,43,47],[43,48,43,53],[43,54,43,61],[41,48,41,53],[41,54,41,61],[41,22,41,37],[41,38,41,40],[41,41,41,44],[41,45,41,47],[40,20,40,21],[40,22,40,37],[40,38,40,40],[40,41,40,44],[40,45,40,47],[43,72,43,78],[44,22,44,37],[44,38,44,40],[44,41,44,44],[44,45,44,47],[44,48,44,53],[44,54,44,61],[44,72,44,78],[42,54,42,61],[42,72,42,78],[46,0,48,1],[46,2,46,10],[46,11,46,18],[46,22,46,37],[46,38,46,40],[46,41,46,44],[46,45,46,47],[45,0,45,10],[45,11,45,18],[45,22,45,37],[45,38,45,40],[45,41,45,44],[45,45,45,47],[48,2,48,10],[48,11,48,18],[48,22,48,37],[48,38,48,40],[48,41,48,44],[48,45,48,47],[47,2,47,10],[47,11,47,18],[47,22,47,37],[47,38,47,40],[47,45,47,47],[47,48,47,53],[45,48,45,53],[45,54,45,61],[48,48,48,53],[48,54,48,61],[46,48,46,53],[46,54,46,61],[45,72,45,78],[46,72,46,78],[51,2,51,10],[51,11,51,18],[51,22,51,37],[51,38,51,40],[51,41,51,44],[51,45,51,47],[50,0,50,10],[50,11,50,18],[50,22,50,37],[50,38,50,40],[50,41,50,44],[50,45,50,47],[48,72,48,78],[49,22,49,37],[49,38,49,40],[49,41,49,44],[49,45,49,47],[49,48,49,53],[49,54,49,61],[49,72,49,78],[47,54,47,61],[47,72,47,78],[47,41,47,44],[28,0,28,14],[41,62,52,65],[41,66,52,71],[52,54,52,61],[52,72,52,78],[53,2,53,10],[53,11,53,18],[53,20,53,53],[53,54,53,61],[53,62,53,78],[51,48,51,53],[51,54,51,61],[51,72,51,78],[52,2,52,10],[52,11,52,18],[52,22,52,37],[52,38,52,40],[52,41,52,44],[52,45,52,47],[52,48,52,53],[50,48,50,53],[50,54,50,61],[50,72,50,78],[51,0,53,1]]}
[]
["【取引先控】"]
[null,null,null,null,null,null,null,null,null,null,null,null,null,null,null,null,null,null,null,null,null,null,null,null,null,null,null,null,null,null,null,null,null,null,null,null,null,null,null,null,null,null,null,null,true,null,null,null,null,null,null,null,null,true]
[null,null,null,null,null,null,null,null,null,null,null,null,null,null,null,null,null,null,null,null,null,null,null,null,null,null,null,null,null,null,null,"請　求　書",null,null,null,null,null,null,null,null,null,null,null,null,"（",false,null,"外注請求分",null,null,null,null,null,null,null,"一般請求分",null,null,null,null,null,"）",null,null,2023,null,null,null,null,"年",null,4,null,"月",null,30,null,"日"]
[null,null,null,null,null,null,null,null,null,null,null,null,null,null,null,null,null,null,null,null,null,null,null,null,null,null,null,null,null,null,null,null,null,null,null,null,null,null,null,null,null,null,null,null,null,null,null,null,null,null,null,null,null,true,null,null,null,null,null,null,null,null,null,null,null,null,null,null,null,null,true]
["株式会社堀内組",null,null,null,null,null,null,null,null,null,null,null,null,null,null,null,"御中",null,null,null,"取引先\nコード",null,null,null,null,0,1,2,3,4,5,6,null,null,null,null,null,null,null,null,null,null,null,null,null,null,null,"適格請求書\n発行事業所",null,null,null,null,null,null,null,"登録済（下記に登録番号を記入）",null,null,null,null,null,null,null,null,null,null,null,null,null,null,null,null,"未登録"]
[null,null,null,null,null,null,null,null,null,null,null,null,null,null,null,null,null,null,null,null,"郵便番号",null,null,null,null,1,2,3,"－",4,5,6,7,null,null,null,null,null,null,null,null,null,null,null,null,null,null,"登録番号",null,null,null,null,null,"Ｔ",1,"－",2,3,4,5,"－",6,7,8,9,"－",0,1,2,3]
["下記のとおり、御請求申し上げます。",null,null,null,null,null,null,null,null,null,null,null,null,null,null,null,null,null,null,null,"住所",null,null,null,null,"○○県○○市○○町１２３",null,null,null,null,null,null,null,null,null,null,null,null,null,null,null,null,null,null,null,null,null,"銀 行 名",null,null,null,null,null,"○○",null,null,null,null,null,null,"銀行",null,null,"支 店 名",null,null,null,null,null,"○○",null,null,null,null,null,null,"支店"]
["税抜金額 （ａ）",null,null,null,null,null,null,{"$f":"L19","v":10000000},null,null,null,null,null,null,null,null,null,null,null,null,"会社名",null,null,null,null,"株式会社　○○建設",null,null,null,null,null,null,null,null,null,null,null,null,null,null,null,null,null,null,null,null,null,"預金種別",null,null,null,null,null,null,null,"普通",null,null,null,null,"当座",null,null,"口座番号",null,null,null,null,null,"１２３４５６７"]
["消費税額 （ｂ）",null,null,null,null,null,null,{"$f":"L24","v":1000000},null,null,null,null,null,null,null,null,null,null,null,null,"代表者名",null,null,null,null,"代表取締役　○○　△△",null,null,null,null,null,null,null,null,null,null,null,null,null,null,null,null,null,null,null,null,null,"（フリガナ）\n口座名義",null,null,null,null,null,"カ）マルマルケンセツ"]
["[税込金額]",null,null,null,null,null,null,{"$f":"SUM(H9:S10)","v":11000000},null,null,null,null,null,null,null,null,null,null,null,null,"電話番号",null,null,null,null,"０１２０—１２—３４５６",null,null,null,null,null,null,null,null,null,null,null,null,null,null,null,null,null,null,null,null,null,null,null,null,null,null,null," （株）○○建設"]
[null,null,null,null,null,null,null,null,null,null,null,null,null,null,null,null,null,null,null,null,null,null,null,null,null,null,null,null,null,null,null,null,null,null,null,null,null,null,null,null,null,null,null,null,null,null,null,null,null,null,null,null,null,true,null,null,null,null,true]
["契約事項",null,"注   文   №",null,null,null,null,2,0,2,3,0,1,0,0,0,0,0,1,null,"工事コード",null,null,null,null,1,2,3,4,5,6,7,8,9,0,"工事名",null,null,null,null,null,"○○建設工事"]
[null,null,"支 払 条 件",null,null,null,null,"現金",null,null,50,null,"％","手形",null,null,50,null,"％",null,"日付",null,"摘　　　要",null,null,null,null,null,null,null,null,null,null,null,null,null,null,null,"税区分",null,null,"数　量",null,null,null,"単 位",null,null,"単　価",null,null,null,null,null,"税抜金額",null,null,null,null,null,null,null,"工種コード",null,null,null,"要素コード",null,null,null,null,null,"備　　考"]
[null,null,"現契約金額",null,null,null,null,100000000,null,null,null,null,null,null,null,null,null,null,null,null,4,30,"第２回　出来高",null,null,null,null,null,null,null,null,null,null,null,null,null,null,null,null,null,null,1,null,null,null,"式",null,null,null,null,null,null,null,null,10000000]
[null,null,"増 減 金 額",null,null,null,null,10000000,null,null,null,null,null,null,null,null,null,null,null,null,null,null,"　↑　※出来高請求の場合"]
[null,null,"合　　　　 計",null,null,null,null,{"$f":"SUM(H15:S16)","v":110000000}]
[]
["　　　【税抜金額合計】　(a)",null,null,null,null,null,null,null,null,null,null,{"$f":"SUM(L20:S22)","v":10000000}]
[null,null,"　　　非課税対象",null,null,null,null,null,null,null,null,0]
[null,null,"　 ※ ８％対象",null,null,null,null,null,null,null,null,0]
[null,null,"　 　１０％対象",null,null,null,null,null,null,null,null,10000000]
[]
["　　　【消費税金額合計】(b)",null,null,null,null,null,null,null,null,null,null,{"$f":"SUM(L25:S27)","v":1000000}]
[null,null,"　　　非 課 税",null,null,null,null,null,null,null,null,0]
[null,null,"　　※８％対象消費税",null,null,null,null,null,null,null,null,{"$f":"ROUND(L21*0.08,0)","v":0}]
[null,null,"　    １０％対象消費税",null,null,null,null,null,null,null,null,{"$f":"ROUND(L22*0.1,0)","v":1000000},null,null,null,null,null,null,null,null,"税抜金額合計(a)",null,null,null,null,null,null,null,null,null,null,null,null,null,null,null,null,null,null,null,null,null,null,null,null,null,null,null,null,null,null,null,null,null,{"$f":"IF(BC15=\"\",\"\",SUM(BC15:BJ26))","v":10000000},null,null,null,null,null,null,null,"　※ 軽減税率対象項目"]
[]
["【取引先控】"]
[null,null,null,null,null,null,null,null,null,null,null,null,null,null,null,null,null,null,null,null,null,null,null,null,null,null,null,null,null,null,null,null,null,null,null,null,null,null,null,null,null,null,null,null,true,null,null,null,null,null,null,null,null,true]
[null,null,null,null,null,null,null,null,null,null,null,null,null,null,null,null,null,null,null,null,null,null,null,null,null,null,null,null,null,null,null,"請　求　書",null,null,null,null,null,null,null,null,null,null,null,null,"（",false,null,"外注請求分",null,null,null,null,null,null,null,"一般請求分",null,null,null,null,null,"）",null,null,2023,null,null,null,null,"年",null,4,null,"月",null,30,null,"日"]
[null,null,null,null,null,null,null,null,null,null,null,null,null,null,null,null,null,null,null,null,null,null,null,null,null,null,null,null,null,null,null,null,null,null,null,null,null,null,null,null,null,null,null,null,null,null,null,null,null,null,null,null,null,true,null,null,null,null,null,null,null,null,null,null,null,null,null,null,null,null,true]
["株式会社堀内組",null,null,null,null,null,null,null,null,null,null,null,null,null,null,null,"御中",null,null,null,"取引先\nコード",null,null,null,null,0,1,2,3,4,5,6,null,null,null,null,null,null,null,null,null,null,null,null,null,null,null,"適格請求書\n発行事業所",null,null,null,null,null,null,null,"登録済（下記に登録番号を記入）",null,null,null,null,null,null,null,null,null,null,null,null,null,null,null,null,"未登録"]
[null,null,null,null,null,null,null,null,null,null,null,null,null,null,null,null,null,null,null,null,"郵便番号",null,null,null,null,1,2,3,"－",4,5,6,7,null,null,null,null,null,null,null,null,null,null,null,null,null,null,"登録番号",null,null,null,null,null,"Ｔ",1,"－",2,3,4,5,"－",6,7,8,9,"－",0,1,2,3]
["下記のとおり、御請求申し上げます。",null,null,null,null,null,null,null,null,null,null,null,null,null,null,null,null,null,null,null,"住所",null,null,null,null,"○○県○○市○○町１２３",null,null,null,null,null,null,null,null,null,null,null,null,null,null,null,null,null,null,null,null,null,"銀 行 名",null,null,null,null,null,"○○",null,null,null,null,null,null,"銀行",null,null,"支 店 名",null,null,null,null,null,"○○",null,null,null,null,null,null,"支店"]
["税抜金額 （ａ）",null,null,null,null,null,null,{"$f":"L46","v":3000000},null,null,null,null,null,null,null,null,null,null,null,null,"会社名",null,null,null,null,"株式会社　○○建設",null,null,null,null,null,null,null,null,null,null,null,null,null,null,null,null,null,null,null,null,null,"預金種別",null,null,null,null,null,null,null,"普通",null,null,null,null,"当座",null,null,"口座番号",null,null,null,null,null,"１２３４５６７"]
["消費税額 （ｂ）",null,null,null,null,null,null,{"$f":"L51","v":180000},null,null,null,null,null,null,null,null,null,null,null,null,"代表者名",null,null,null,null,"代表取締役　○○　△△",null,null,null,null,null,null,null,null,null,null,null,null,null,null,null,null,null,null,null,null,null,"（フリガナ）\n口座名義",null,null,null,null,null,"カ）マルマルケンセツ"]
["[税込金額]",null,null,null,null,null,null,{"$f":"SUM(H36:S37)","v":3180000},null,null,null,null,null,null,null,null,null,null,null,null,"電話番号",null,null,null,null,"０１２０—１２—３４５６",null,null,null,null,null,null,null,null,null,null,null,null,null,null,null,null,null,null,null,null,null,null,null,null,null,null,null," （株）○○建設"]
[null,null,null,null,null,null,null,null,null,null,null,null,null,null,null,null,null,null,null,null,null,null,null,null,null,null,null,null,null,null,null,null,null,null,null,null,null,null,null,null,null,null,null,null,null,null,null,null,null,null,null,null,null,true,null,null,null,null,true]
["契約事項",null,"注   文   №",null,null,null,null,null,null,null,null,null,null,null,null,null,null,null,null,null,"工事コード",null,null,null,null,1,2,3,4,5,6,7,8,9,0,"工事名",null,null,null,null,null,"○○建設工事"]
[null,null,"支 払 条 件",null,null,null,null,"現金",null,null,null,null,"％","手形",null,null,null,null,"％",null,"日付",null,"摘　　　要",null,null,null,null,null,null,null,null,null,null,null,null,null,null,null,"税区分",null,null,"数　量",null,null,null,"単 位",null,null,"単　価",null,null,null,null,null,"税抜金額",null,null,null,null,null,null,null,"工種コード",null,null,null,"要素コード",null,null,null,null,null,"備　　考"]
[null,null,"現契約金額",null,null,null,null,null,null,null,null,null,null,null,null,null,null,null,null,null,4,30,"別紙明細書の通り",null,null,null,null,null,null,null,null,null,null,null,null,null,null,null,"非",null,null,1,null,null,null,"式",null,null,null,null,null,null,null,null,1000000]
[null,null,"増 減 金 額",null,null,null,null,null,null,null,null,null,null,null,null,null,null,null,null,null,null,null,"　　　　　〃",null,null,null,null,null,null,null,null,null,null,null,null,null,null,null,"※",null,null,1,null,null,null,"式",null,null,null,null,null,null,null,null,1000000]
[null,null,"合　　　　 計",null,null,null,null,null,null,null,null,null,null,null,null,null,null,null,null,null,null,null,"　　　　　〃",null,null,null,null,null,null,null,null,null,null,null,null,null,null,null,null,null,null,1,null,null,null,"式",null,null,null,null,null,null,null,null,1000000]
[null,null,null,null,null,null,null,null,null,null,null,null,null,null,null,null,null,null,null,null,null,null,"　↑　※明細書を添付する場合"]
["　　　【税抜金額合計】　(a)",null,null,null,null,null,null,null,null,null,null,{"$f":"SUM(L47:S49)","v":3000000}]
[null,null,"　　　非課税対象",null,null,null,null,null,null,null,null,1000000]
[null,null,"　 ※ ８％対象",null,null,null,null,null,null,null,null,1000000]
[null,null,"　 　１０％対象",null,null,null,null,null,null,null,null,1000000]
[]
["　　　【消費税金額合計】(b)",null,null,null,null,null,null,null,null,null,null,{"$f":"SUM(L52:S54)","v":180000}]
[null,null,"　　　非 課 税",null,null,null,null,null,null,null,null,0]
[null,null,"　　※８％対象消費税",null,null,null,null,null,null,null,null,{"$f":"ROUND(L48*0.08,0)","v":80000}]
[null,null,"　    １０％対象消費税",null,null,null,null,null,null,null,null,{"$f":"ROUND(L49*0.1,0)","v":100000},null,null,null,null,null,null,null,null,"税抜金額合計(a)",null,null,null,null,null,null,null,null,null,null,null,null,null,null,null,null,null,null,null,null,null,null,null,null,null,null,null,null,null,null,null,null,null,{"$f":"IF(BC42=\"\",\"\",SUM(BC42:BJ53))","v":3000000},null,null,null,null,null,null,null,"　※ 軽減税率対象項目"]

{"sheet":"協力業者発行請求書P1","index":3,"n_rows":54,"n_cols":172,"rows_kept":54,"cut":false,"hidden":false,"merged":[[3,154,3,155],[5,132,5,133],[5,134,5,148],[5,149,5,150],[5,151,5,157],[5,126,5,131],[3,77,3,78],[3,110,3,122],[3,124,3,125],[3,126,3,131],[5,79,5,94],[5,95,5,97],[5,99,5,103],[5,111,5,125],[3,156,3,157],[3,132,3,133],[3,134,3,139],[3,143,3,147],[3,148,3,149],[3,150,3,151],[3,152,3,153],[5,0,5,15],[5,16,5,18],[5,20,5,24],[5,32,5,46],[5,47,5,52],[5,53,5,54],[5,55,5,69],[5,70,5,71],[5,72,5,78],[1,0,1,14],[1,79,1,93],[3,31,3,43],[3,45,3,46],[3,47,3,52],[3,53,3,54],[3,55,3,60],[3,64,3,68],[3,69,3,70],[3,71,3,72],[3,73,3,74],[3,75,3,76],[6,126,6,131],[6,149,6,157],[7,0,7,18],[7,20,7,24],[7,25,7,46],[7,47,7,52],[7,53,7,59],[7,60,7,62],[7,63,7,68],[7,69,7,75],[7,139,7,141],[7,142,7,147],[7,148,7,154],[7,155,7,157],[7,104,7,125],[7,126,7,131],[7,132,7,138],[6,20,6,24],[6,33,6,46],[6,47,6,52],[6,70,6,78],[6,99,6,103],[6,112,6,125],[8,0,8,6],[8,7,8,18],[8,20,8,24],[8,25,8,43],[8,44,8,46],[8,47,8,52],[7,76,7,78],[7,79,7,97],[7,99,7,103],[8,53,8,54],[8,55,8,57],[8,58,8,59],[8,60,8,62],[8,63,8,68],[8,69,8,78],[8,132,8,133],[8,134,8,136],[8,137,8,138],[8,139,8,141],[8,142,8,147],[8,148,8,157],[8,79,8,85],[8,86,8,97],[8,99,8,103],[8,104,8,122],[8,123,8,125],[8,126,8,131],[10,132,10,157],[9,79,9,85],[9,86,9,97],[9,99,9,103],[9,104,9,125],[9,126,10,131],[9,132,9,157],[9,0,9,6],[9,7,9,18],[9,20,9,24],[9,25,9,46],[9,47,10,52],[9,53,9,78],[10,0,10,6],[10,7,10,18],[10,20,10,24],[10,25,10,46],[10,53,10,78],[10,79,10,85],[10,86,10,97],[10,99,10,103],[10,104,10,125],[12,0,16,1],[12,2,12,6],[12,20,12,24],[12,35,12,40],[12,41,12,78],[12,79,16,80],[13,22,13,37],[13,38,13,40],[13,41,13,44],[13,45,13,47],[14,72,14,78],[15,72,15,78],[14,2,14,6],[14,7,14,18],[14,22,14,37],[14,38,14,40],[14,41,14,44],[14,45,14,47],[14,48,14,53],[14,54,14,61],[13,54,13,61],[13,62,13,65],[12,81,12,85],[12,99,12,103],[12,114,12,119],[12,120,12,157],[13,2,13,6],[13,7,13,9],[13,10,13,11],[13,13,13,15],[13,16,13,17],[13,20,13,21],[13,151,13,157],[13,117,13,119],[13,120,13,123],[13,124,13,126],[13,127,13,132],[13,133,13,140],[13,141,13,144],[13,86,13,88],[13,89,13,90],[13,92,13,94],[13,95,13,96],[13,99,13,100],[13,101,13,116],[13,48,13,53],[14,133,14,140],[14,141,25,144],[15,117,15,119],[15,120,15,123],[15,124,15,126],[15,127,15,132],[14,62,25,65],[14,66,25,71],[13,145,13,150],[13,66,13,71],[13,72,13,78],[13,81,13,85],[14,81,14,85],[14,86,14,97],[14,101,14,116],[15,81,15,85],[15,86,15,97],[15,101,15,116],[15,133,15,140],[16,127,16,132],[16,133,16,140],[18,127,18,132],[18,133,18,140],[20,81,20,89],[15,151,15,157],[16,2,16,6],[16,7,16,18],[16,22,16,37],[16,38,16,40],[16,41,16,44],[16,45,16,47],[16,48,16,53],[16,54,16,61],[14,145,25,150],[14,151,14,157],[15,2,15,6],[15,7,15,18],[15,22,15,37],[15,38,15,40],[15,41,15,44],[15,45,15,47],[15,48,15,53],[15,54,15,61],[14,117,14,119],[14,120,14,123],[14,124,14,126],[14,127,14,132],[16,124,16,126],[16,151,16,157],[17,22,17,37],[17,38,17,40],[17,41,17,44],[17,45,17,47],[17,48,17,53],[17,54,17,61],[16,72,16,78],[16,81,16,85],[16,86,16,97],[16,101,16,116],[16,117,16,119],[16,120,16,123],[17,133,17,140],[17,151,17,157],[17,101,17,116],[17,117,17,119],[17,120,17,123],[17,124,17,126],[17,127,17,132],[18,0,18,10],[18,11,18,18],[18,22,18,37],[18,38,18,40],[18,41,18,44],[18,45,18,47],[18,48,18,53],[18,54,18,61],[17,72,17,78],[18,124,18,126],[20,90,20,97],[20,101,20,116],[20,117,20,119],[20,120,20,123],[20,124,20,126],[20,127,20,132],[18,151,18,157],[19,0,21,1],[19,2,19,10],[19,11,19,18],[19,22,19,37],[19,38,19,40],[19,41,19,44],[18,72,18,78],[18,79,18,89],[18,90,18,97],[18,101,18,116],[18,117,18,119],[18,120,18,123],[20,133,20,140],[20,151,20,157],[21,2,21,10],[21,11,21,18],[19,133,19,140],[19,151,19,157],[20,2,20,10],[20,11,20,18],[20,22,20,37],[20,38,20,40],[20,41,20,44],[20,45,20,47],[20,48,20,53],[20,54,20,61],[19,90,19,97],[19,101,19,116],[19,117,19,119],[19,120,19,123],[19,124,19,126],[19,127,19,132],[19,45,19,47],[19,48,19,53],[19,54,19,61],[19,72,19,78],[19,79,21,80],[19,81,19,89],[20,72,20,78],[21,133,21,140],[21,151,21,157],[22,22,22,37],[22,38,22,40],[22,41,22,44],[22,45,22,47],[22,48,22,53],[22,54,22,61],[22,72,22,78],[22,101,22,116],[21,90,21,97],[21,101,21,116],[21,117,21,119],[21,120,21,123],[21,124,21,126],[21,127,21,132],[21,41,21,44],[21,45,21,47],[21,48,21,53],[21,54,21,61],[21,72,21,78],[21,81,21,89],[21,22,21,37],[21,38,21,40],[22,171,22,178],[23,0,23,10],[23,11,23,18],[23,22,23,37],[23,38,23,40],[23,41,23,44],[23,45,23,47],[23,48,23,53],[23,54,23,61],[22,117,22,119],[22,120,22,123],[22,124,22,126],[22,127,22,132],[22,133,22,140],[22,151,22,157],[23,171,23,178],[22,160,22,170],[23,124,23,126],[23,127,23,132],[23,133,23,140],[23,151,23,157],[23,160,25,161],[23,162,23,170],[23,72,23,78],[23,79,23,89],[23,90,23,97],[23,101,23,116],[23,117,23,119],[23,120,23,123],[24,117,24,119],[25,81,25,89],[25,90,25,97],[24,120,24,123],[24,0,26,1],[24,2,24,10],[24,11,24,18],[24,22,24,37],[24,38,24,40],[24,41,24,44],[24,45,24,47],[24,48,24,53],[24,54,24,61],[26,2,26,10],[26,11,26,18],[25,11,25,18],[25,22,25,37],[25,38,25,40],[25,41,25,44],[25,45,25,47],[25,48,25,53],[25,54,25,61],[24,171,24,178],[25,2,25,10],[28,0,28,14],[28,39,28,43],[28,44,28,48],[28,49,28,53],[28,54,28,58],[28,59,28,63],[26,141,26,157],[27,39,27,48],[27,49,27,63],[27,64,27,68],[27,69,27,78],[28,74,28,78],[24,124,24,126],[24,127,24,132],[24,133,24,140],[24,151,24,157],[24,162,24,170],[24,72,24,78],[24,79,26,80],[24,81,24,89],[24,90,24,97],[24,101,24,116],[30,31,30,43],[30,45,30,46],[30,47,30,52],[30,53,30,54],[30,55,30,60],[30,64,30,68],[28,64,28,68],[28,69,28,73],[26,20,26,53],[30,69,30,70],[30,71,30,72],[30,73,30,74],[30,75,30,76],[32,55,32,69],[32,70,32,71],[32,72,32,78],[25,171,25,178],[26,54,26,61],[26,62,26,78],[26,81,26,89],[26,90,26,97],[26,99,26,132],[26,133,26,140],[25,120,25,123],[25,124,25,126],[25,127,25,132],[25,133,25,140],[25,151,25,157],[25,162,25,170],[30,77,30,78],[25,101,25,116],[25,117,25,119],[25,72,25,78],[33,20,33,24],[33,33,33,46],[33,47,33,52],[33,70,33,78],[32,0,32,15],[32,16,32,18],[32,20,32,24],[32,32,32,46],[32,47,32,52],[32,53,32,54],[35,0,35,6],[35,7,35,18],[35,20,35,24],[35,25,35,43],[35,44,35,46],[35,47,35,52],[34,76,34,78],[34,0,34,18],[34,20,34,24],[34,25,34,46],[34,47,34,52],[34,53,34,59],[34,60,34,62],[34,63,34,68],[34,69,34,75],[39,41,39,78],[40,22,40,37],[40,38,40,40],[40,41,40,44],[40,45,40,47],[35,53,35,54],[35,55,35,57],[35,58,35,59],[35,60,35,62],[35,63,35,68],[35,69,35,78],[37,53,37,78],[40,48,40,53],[40,54,40,61],[40,62,40,65],[40,66,40,71],[40,72,40,78],[36,0,36,6],[36,7,36,18],[36,20,36,24],[36,25,36,46],[36,47,37,52],[36,53,36,78],[37,0,37,6],[37,7,37,18],[37,20,37,24],[37,25,37,46],[40,2,40,6],[40,7,40,9],[40,10,40,11],[40,13,40,15],[40,16,40,17],[40,20,40,21],[39,0,43,1],[39,2,39,6],[39,20,39,24],[43,2,43,6],[43,7,43,18],[43,22,43,37],[39,35,39,40],[41,72,41,78],[41,2,41,6],[41,7,41,18],[41,22,41,37],[41,38,41,40],[41,41,41,44],[41,45,41,47],[41,48,41,53],[41,54,41,61],[42,48,42,53],[42,54,42,61],[42,72,42,78],[42,2,42,6],[42,7,42,18],[42,22,42,37],[42,38,42,40],[42,41,42,44],[42,45,42,47],[44,72,44,78],[44,22,44,37],[44,38,44,40],[44,41,44,44],[44,45,44,47],[44,48,44,53],[44,54,44,61],[43,48,43,53],[43,54,43,61],[43,72,43,78],[43,38,43,40],[43,41,43,44],[43,45,43,47],[45,72,45,78],[48,2,48,10],[48,11,48,18],[48,22,48,37],[48,38,48,40],[45,0,45,10],[45,11,45,18],[45,22,45,37],[45,38,45,40],[45,41,45,44],[45,45,45,47],[45,48,45,53],[45,54,45,61],[46,72,46,78],[47,72,47,78],[48,72,48,78],[46,0,48,1],[46,2,46,10],[46,11,46,18],[46,22,46,37],[46,38,46,40],[46,41,46,44],[47,2,47,10],[47,11,47,18],[49,72,49,78],[48,41,48,44],[48,45,48,47],[48,48,48,53],[48,54,48,61],[50,48,50,53],[50,54,50,61],[50,72,50,78],[51,72,51,78],[50,45,50,47],[51,45,51,47],[51,48,51,53],[47,22,47,37],[47,38,47,40],[47,41,47,44],[47,45,47,47],[47,48,47,53],[47,54,47,61],[46,45,46,47],[46,48,46,53],[46,54,46,61],[49,22,49,37],[49,38,49,40],[49,41,49,44],[49,45,49,47],[49,48,49,53],[49,54,49,61],[52,2,52,10],[52,11,52,18],[52,22,52,37],[52,38,52,40],[52,41,52,44],[50,0,50,10],[50,11,50,18],[50,22,50,37],[50,38,50,40],[50,41,50,44],[52,48,52,53],[52,54,52,61],[53,2,53,10],[53,11,53,18],[53,20,53,53],[53,54,53,61],[53,62,53,78],[51,0,53,1],[51,2,51,10],[51,11,51,18],[51,22,51,37],[51,38,51,40],[51,41,51,44],[51,54,51,61],[52,45,52,47],[52,72,52,78]]}
[]
["【取引先控】",null,null,null,null,null,null,null,null,null,null,null,null,null,null,null,null,null,null,null,null,null,null,null,null,null,null,null,null,null,null,null,null,null,null,null,null,null,null,null,null,null,null,null,null,null,null,null,null,null,null,null,null,null,null,null,null,null,null,null,null,null,null,null,null,null,null,null,null,null,null,null,null,null,null,null,null,null,null,"【取引先控】"]
[null,null,null,null,null,null,null,null,null,null,null,null,null,null,null,null,null,null,null,null,null,null,null,null,null,null,null,null,null,null,null,null,null,null,null,null,null,null,null,null,null,null,null,null,false,null,null,null,null,null,null,null,null,false,null,null,null,null,null,null,null,null,null,null,null,null,null,null,null,null,null,null,null,null,null,null,null,null,null,null,null,null,null,null,null,null,null,null,null,null,null,null,null,null,null,null,null,null,null,null,null,null,null,null,null,null,null,null,null,null,null,null,null,null,null,null,null,null,null,null,null,null,null,true,null,null,null,null,null,null,null,null,true]
[null,null,null,null,null,null,null,null,null,null,null,null,null,null,null,null,null,null,null,null,null,null,null,null,null,null,null,null,null,null,null,"請　求　書",null,null,null,null,null,null,null,null,null,null,null,null,"（",false,null,"外注請求分",null,null,null,null,null,null,null,"一般請求分",null,null,null,null,null,"）",null,null,null,null,null,null,null,"年",null,null,null,"月",null,null,null,"日",null,null,null,null,null,null,null,null,null,null,null,null,null,null,null,null,null,null,null,null,null,null,null,null,null,null,null,null,null,null,null,null,"請　求　書",null,null,null,null,null,null,null,null,null,null,null,null,"（",false,null,"外注請求分",null,null,null,null,null,null,null,"一般請求分",null,null,null,null,null,"）",null,null,2023,null,null,null,null,"年",null,4,null,"月",null,30,null,"日"]
[null,null,null,null,null,null,null,null,null,null,null,null,null,null,null,null,null,null,null,null,null,null,null,null,null,null,null,null,null,null,null,null,null,null,null,null,null,null,null,null,null,null,null,null,null,null,null,null,null,null,null,null,null,false,null,null,null,null,null,null,null,null,null,null,null,null,null,null,null,null,false,null,null,null,null,null,null,null,null,null,null,null,null,null,null,null,null,null,null,null,null,null,null,null,null,null,null,null,null,null,null,null,null,null,null,null,null,null,null,null,null,null,null,null,null,null,null,null,null,null,null,null,null,null,null,null,null,null,null,null,null,null,true,null,null,null,null,null,null,null,null,null,null,null,null,null,null,null,null,true]
["株式会社堀内組",null,null,null,null,null,null,null,null,null,null,null,null,null,null,null,"御中",null,null,null,"取引先\nコード",null,null,null,null,0,null,null,null,null,null,null,null,null,null,null,null,null,null,null,null,null,null,null,null,null,null,"適格請求書\n発行事業所",null,null,null,null,null,null,null,"登録済（下記に登録番号を記入）",null,null,null,null,null,null,null,null,null,null,null,null,null,null,null,null,"未登録",null,null,null,null,null,null,"株式会社堀内組",null,null,null,null,null,null,null,null,null,null,null,null,null,null,null,"御中",null,null,null,"取引先\nコード",null,null,null,null,0,1,2,3,4,5,6,null,null,null,null,null,null,null,null,null,null,null,null,null,null,null,"適格請求書\n発行事業所",null,null,null,null,null,null,null,"登録済（下記に登録番号を記入）",null,null,null,null,null,null,null,null,null,null,null,null,null,null,null,null,"未登録"]
[null,null,null,null,null,null,null,null,null,null,null,null,null,null,null,null,null,null,null,null,"郵便番号",null,null,null,null,null,null,null,"－",null,null,null,null,null,null,null,null,null,null,null,null,null,null,null,null,null,null,"登録番号",null,null,null,null,null,"Ｔ",null,"－",null,null,null,null,"－",null,null,null,null,"－",null,null,null,null,null,null,null,null,null,null,null,null,null,null,null,null,null,null,null,null,null,null,null,null,null,null,null,null,null,null,null,null,null,"郵便番号",null,null,null,null,1,2,3,"－",4,5,6,7,null,null,null,null,null,null,null,null,null,null,null,null,null,null,"登録番号",null,null,null,null,null,"Ｔ",1,"－",2,3,4,5,"－",6,7,8,9,"－",0,1,2,3]
["下記のとおり、御請求申し上げます。",null,null,null,null,null,null,null,null,null,null,null,null,null,null,null,null,null,null,null,"住所",null,null,null,null,null,null,null,null,null,null,null,null,null,null,null,null,null,null,null,null,null,null,null,null,null,null,"銀 行 名",null,null,null,null,null,null,null,null,null,null,null,null,"銀行",null,null,"支 店 名",null,null,null,null,null,null,null,null,null,null,null,null,"支店",null,null,"下記のとおり、御請求申し上げます。",null,null,null,null,null,null,null,null,null,null,null,null,null,null,null,null,null,null,null,"住所",null,null,null,null,"○○県○○市○○町１２３",null,null,null,null,null,null,null,null,null,null,null,null,null,null,null,null,null,null,null,null,null,"銀 行 名",null,null,null,null,null,"○○",null,null,null,null,null,null,"銀行",null,null,"支 店 名",null,null,null,null,null,"○○",null,null,null,null,null,null,"支店"]
["税抜金額 （ａ）",null,null,null,null,null,null,{"$f":"L19","v":0},null,null,null,null,null,null,null,null,null,null,null,null,"会社名",null,null,null,null,null,null,null,null,null,null,null,null,null,null,null,null,null,null,null,null,null,null,null,null,null,null,"預金種別",null,null,null,null,null,null,null,"普通",null,null,null,null,"当座",null,null,"口座番号",null,null,null,null,null,null,null,null,null,null,null,null,null,null,null,"税抜金額 （ａ）",null,null,null,null,null,null,{"$f":"CM19","v":10000000},null,null,null,null,null,null,null,null,null,null,null,null,"会社名",null,null,null,null,"株式会社　○○建設",null,null,null,null,null,null,null,null,null,null,null,null,null,null,null,null,null,null,null,null,null,"預金種別",null,null,null,null,null,null,null,"普通",null,null,null,null,"当座",null,null,"口座番号",null,null,null,null,null,"１２３４５６７"]
["消費税額 （ｂ）",null,null,null,null,null,null,{"$f":"L24","v":0},null,null,null,null,null,null,null,null,null,null,null,null,"代表者名",null,null,null,null,null,null,null,null,null,null,null,null,null,null,null,null,null,null,null,null,null,null,null,null,null,null,"（フリガナ）\n口座名義",null,null,null,null,null,null,null,null,null,null,null,null,null,null,null,null,null,null,null,null,null,null,null,null,null,null,null,null,null,null,null,"消費税額 （ｂ）",null,null,null,null,null,null,{"$f":"CM24","v":1000000},null,null,null,null,null,null,null,null,null,null,null,null,"代表者名",null,null,null,null,"代表取締役　○○　△△",null,null,null,null,null,null,null,null,null,null,null,null,null,null,null,null,null,null,null,null,null,"（フリガナ）\n口座名義",null,null,null,null,null,"カ）マルマルケンセツ"]
["[税込金額]",null,null,null,null,null,null,{"$f":"SUM(H9:S10)","v":0},null,null,null,null,null,null,null,null,null,null,null,null,"電話番号",null,null,null,null,null,null,null,null,null,null,null,null,null,null,null,null,null,null,null,null,null,null,null,null,null,null,null,null,null,null,null,null,null,null,null,null,null,null,null,null,null,null,null,null,null,null,null,null,null,null,null,null,null,null,null,null,null,null,"[税込金額]",null,null,null,null,null,null,{"$f":"SUM(CI9:CT10)","v":11000000},null,null,null,null,null,null,null,null,null,null,null,null,"電話番号",null,null,null,null,"０１２０—１２—３４５６",null,null,null,null,null,null,null,null,null,null,null,null,null,null,null,null,null,null,null,null,null,null,null,null,null,null,null," （株）○○建設"]
[null,null,null,null,null,null,null,null,null,null,null,null,null,null,null,null,null,null,null,null,null,null,null,null,null,null,null,null,null,null,null,null,null,null,null,null,null,null,null,null,null,null,null,null,null,null,null,null,null,null,null,null,null,false,null,null,null,null,false,null,null,null,null,null,null,null,null,null,null,null,null,null,null,null,null,null,null,null,null,null,null,null,null,null,null,null,null,null,null,null,null,null,null,null,null,null,null,null,null,null,null,null,null,null,null,null,null,null,null,null,null,null,null,null,null,null,null,null,null,null,null,null,null,null,null,null,null,null,null,null,null,null,true,null,null,null,null,true]
["契約事項",null,"注   文   №",null,null,null,null,null,null,null,null,null,null,null,null,null,null,null,null,null,"工事コード",null,null,null,null,null,null,null,null,null,null,null,null,null,null,"工事名",null,null,null,null,null,null,null,null,null,null,null,null,null,null,null,null,null,null,null,null,null,null,null,null,null,null,null,null,null,null,null,null,null,null,null,null,null,null,null,null,null,null,null,"契約事項",null,"注   文   №",null,null,null,null,2,0,2,3,0,1,0,0,0,0,0,1,null,"工事コード",null,null,null,null,1,2,3,4,5,6,7,8,9,0,"工事名",null,null,null,null,null,"○○建設工事"]
[null,null,"支 払 条 件",null,null,null,null,"現金",null,null,null,null,"％","手形",null,null,null,null,"％",null,"日付",null,"摘　　　要",null,null,null,null,null,null,null,null,null,null,null,null,null,null,null,"税区分",null,null,"数　量",null,null,null,"単 位",null,null,"単　価",null,null,null,null,null,"税抜金額",null,null,null,null,null,null,null,"工種コード",null,null,null,"要素コード",null,null,null,null,null,"備　　考",null,null,null,null,null,null,null,null,"支 払 条 件",null,null,null,null,"現金",null,null,50,null,"％","手形",null,null,50,null,"％",null,"日付",null,"摘　　　要",null,null,null,null,null,null,null,null,null,null,null,null,null,null,null,"税区分",null,null,"数　量",null,null,null,"単 位",null,null,"単　価",null,null,null,null,null,"税抜金額",null,null,null,null,null,null,null,"工種コード",null,null,null,"要素コード",null,null,null,null,null,"備　　考"]
[null,null,"現契約金額",null,null,null,null,null,null,null,null,null,null,null,null,null,null,null,null,null,null,null,null,null,null,null,null,null,null,null,null,null,null,null,null,null,null,null,null,null,null,null,null,null,null,null,null,null,null,null,null,null,null,null,{"$f":"IF(AP15=\"\",\"\",ROUND(AP15*AW15,0))","v":""},null,null,null,null,null,null,null,null,null,null,null,null,null,null,null,null,null,null,null,null,null,null,null,null,null,null,"現契約金額",null,null,null,null,100000000,null,null,null,null,null,null,null,null,null,null,null,null,4,30,"第２回　出来高",null,null,null,null,null,null,null,null,null,null,null,null,null,null,null,null,null,null,1,null,null,null,"式",null,null,null,null,null,null,null,null,10000000]
[null,null,"増 減 金 額",null,null,null,null,null,null,null,null,null,null,null,null,null,null,null,null,null,null,null,null,null,null,null,null,null,null,null,null,null,null,null,null,null,null,null,null,null,null,null,null,null,null,null,null,null,null,null,null,null,null,null,{"$f":"IF(AP16=\"\",\"\",ROUND(AP16*AW16,0))","v":""},null,null,null,null,null,null,null,null,null,null,null,null,null,null,null,null,null,null,null,null,null,null,null,null,null,null,"増 減 金 額",null,null,null,null,10000000,null,null,null,null,null,null,null,null,null,null,null,null,null,null,"　↑　※出来高請求の場合"]
[null,null,"合　　　　 計",null,null,null,null,{"$f":"SUM(H15:S16)","v":0},null,null,null,null,null,null,null,null,null,null,null,null,null,null,null,null,null,null,null,null,null,null,null,null,null,null,null,null,null,null,null,null,null,null,null,null,null,null,null,null,null,null,null,null,null,null,"",null,null,null,null,null,null,null,null,null,null,null,null,null,null,null,null,null,null,null,null,null,null,null,null,null,null,"合　　　　 計",null,null,null,null,{"$f":"SUM(CI15:CT16)","v":110000000}]
[null,null,null,null,null,null,null,null,null,null,null,null,null,null,null,null,null,null,null,null,null,null,null,null,null,null,null,null,null,null,null,null,null,null,null,null,null,null,null,null,null,null,null,null,null,null,null,null,null,null,null,null,null,null,""]
["　　　【税抜金額合計】　(a)",null,null,null,null,null,null,null,null,null,null,{"$f":"SUM(L20:S22)","v":0},null,null,null,null,null,null,null,null,null,null,null,null,null,null,null,null,null,null,null,null,null,null,null,null,null,null,null,null,null,null,null,null,null,null,null,null,null,null,null,null,null,null,"",null,null,null,null,null,null,null,null,null,null,null,null,null,null,null,null,null,null,null,null,null,null,null,null,"　　　【税抜金額合計】　(a)",null,null,null,null,null,null,null,null,null,null,{"$f":"SUM(CM20:CT22)","v":10000000}]
[null,null,"　　　非課税対象",null,null,null,null,null,null,null,null,{"$f":"SUM(FP24,請求内訳書P2!CO26,請求内訳書P3!CO26,請求内訳書P4!CO26)","v":0},null,null,null,null,null,null,null,null,null,null,null,null,null,null,null,null,null,null,null,null,null,null,null,null,null,null,null,null,null,null,null,null,null,null,null,null,null,null,null,null,null,null,"",null,null,null,null,null,null,null,null,null,null,null,null,null,null,null,null,null,null,null,null,null,null,null,null,null,null,"　　　非課税対象",null,null,null,null,null,null,null,null,0,null,null,null,null,null,null,null,null,4,30,"別紙明細書の通り",null,null,null,null,null,null,null,null,null,null,null,null,null,null,null,"非",null,null,1,null,null,null,"式",null,null,null,null,null,null,null,null,1000000]
[null,null,"　 ※ ８％対象",null,null,null,null,null,null,null,null,{"$f":"SUM(FP25,請求内訳書P2!CO27,請求内訳書P3!CO27,請求内訳書P4!CO27)","v":0},null,null,null,null,null,null,null,null,null,null,null,null,null,null,null,null,null,null,null,null,null,null,null,null,null,null,null,null,null,null,null,null,null,null,null,null,null,null,null,null,null,null,"",null,null,null,null,null,null,null,null,null,null,null,null,null,null,null,null,null,null,null,null,null,null,null,null,null,null,"　 ※ ８％対象",null,null,null,null,null,null,null,null,0,null,null,null,null,null,null,null,null,null,null,"　　　　　〃",null,null,null,null,null,null,null,null,null,null,null,null,null,null,null,"※",null,null,1,null,null,null,"式",null,null,null,null,null,null,null,null,1000000,null,null,null,null,null,null,null,null,null,null,null,null,null,null,null,null,null,null,null,null,null,null,null,null,null,null,"[●計算用項目]"]
[null,null,"　 　１０％対象",null,null,null,null,null,null,null,null,{"$f":"SUM(FP26,請求内訳書P2!CO28,請求内訳書P3!CO28,請求内訳書P4!CO28)","v":0},null,null,null,null,null,null,null,null,null,null,null,null,null,null,null,null,null,null,null,null,null,null,null,null,null,null,null,null,null,null,null,null,null,null,null,null,null,null,null,null,null,null,"",null,null,null,null,null,null,null,null,null,null,null,null,null,null,null,null,null,null,null,null,null,null,null,null,null,null,"　 　１０％対象",null,null,null,null,null,null,null,null,10000000,null,null,null,null,null,null,null,null,null,null,"　　　　　〃",null,null,null,null,null,null,null,null,null,null,null,null,null,null,null,null,null,null,1,null,null,null,"式",null,null,null,null,null,null,null,null,1000000]
[null,null,null,null,null,null,null,null,null,null,null,null,null,null,null,null,null,null,null,null,null,null,null,null,null,null,null,null,null,null,null,null,null,null,null,null,null,null,null,null,null,null,null,null,null,null,null,null,null,null,null,null,null,null,"",null,null,null,null,null,null,null,null,null,null,null,null,null,null,null,null,null,null,null,null,null,null,null,null,null,null,null,null,null,null,null,null,null,null,null,null,null,null,null,null,null,null,null,null,null,null,"　↑　※明細書を添付する場合",null,null,null,null,null,null,null,null,null,null,null,null,null,null,null,null,null,null,null,null,null,null,null,null,null,null,null,null,null,null,null,null,null,null,null,null,null,null,null,null,null,null,null,null,null,null,null,null,null,null,null,null,null,null,null,null,null,null,"　　　【税抜金額合計】　(a)",null,null,null,null,null,null,null,null,null,null,{"$f":"SUM(FP24:FW26)","v":0}]
["　　　【消費税金額合計】(b)",null,null,null,null,null,null,null,null,null,null,{"$f":"SUM(L25:S27)","v":0},null,null,null,null,null,null,null,null,null,null,null,null,null,null,null,null,null,null,null,null,null,null,null,null,null,null,null,null,null,null,null,null,null,null,null,null,null,null,null,null,null,null,"",null,null,null,null,null,null,null,null,null,null,null,null,null,null,null,null,null,null,null,null,null,null,null,null,"　　　【消費税金額合計】(b)",null,null,null,null,null,null,null,null,null,null,{"$f":"SUM(CM25:CT27)","v":1000000},null,null,null,null,null,null,null,null,null,null,null,null,null,null,null,null,null,null,null,null,null,null,null,null,null,null,null,null,null,null,null,null,null,null,null,null,null,null,null,null,null,null,null,null,null,null,null,null,null,null,null,null,null,null,null,null,null,null,null,null,null,null,null,null,null,null,null,null,null,null,null,"　　　非課税対象",null,null,null,null,null,null,null,null,{"$f":"SUMIF($AM$15:$AO$26,\"非\",$BC$15:$BJ$26)","v":0}]
[null,null,"　　　非 課 税",null,null,null,null,null,null,null,null,0,null,null,null,null,null,null,null,null,null,null,null,null,null,null,null,null,null,null,null,null,null,null,null,null,null,null,null,null,null,null,null,null,null,null,null,null,null,null,null,null,null,null,"",null,null,null,null,null,null,null,null,null,null,null,null,null,null,null,null,null,null,null,null,null,null,null,null,null,null,"　　　非 課 税",null,null,null,null,null,null,null,null,0,null,null,null,null,null,null,null,null,null,null,null,null,null,null,null,null,null,null,null,null,null,null,null,null,null,null,null,null,null,null,null,null,null,null,null,null,null,null,null,null,null,null,null,null,null,null,null,null,null,null,null,null,null,null,null,null,null,null,null,null,null,null,null,null,null,null,null,null,null,null,null,"　 ※ ８％対象",null,null,null,null,null,null,null,null,{"$f":"SUMIF($AM$15:$AO$26,\"※\",$BC$15:$BJ$26)","v":0}]
[null,null,"　　※８％対象消費税",null,null,null,null,null,null,null,null,{"$f":"ROUND(L21*0.08,0)","v":0},null,null,null,null,null,null,null,null,null,null,null,null,null,null,null,null,null,null,null,null,null,null,null,null,null,null,null,null,null,null,null,null,null,null,null,null,null,null,null,null,null,null,"",null,null,null,null,null,null,null,null,null,null,null,null,null,null,null,null,null,null,null,null,null,null,null,null,null,null,"　　※８％対象消費税",null,null,null,null,null,null,null,null,{"$f":"ROUND(CM21*0.08,0)","v":0},null,null,null,null,null,null,null,null,null,null,null,null,null,null,null,null,null,null,null,null,null,null,null,null,null,null,null,null,null,null,null,null,null,null,null,null,null,null,null,null,null,null,null,null,null,null,null,null,null,null,null,null,null,null,null,null,null,null,null,null,null,null,null,null,null,null,null,null,null,null,null,"　 　１０％対象",null,null,null,null,null,null,null,null,{"$f":"SUMIF($AM$15:$AO$26,\"\",$BC$15:$BJ$26)","v":0}]
[null,null,"　    １０％対象消費税",null,null,null,null,null,null,null,null,{"$f":"ROUND(L22*0.1,0)","v":0},null,null,null,null,null,null,null,null,{"$f":"IF(請求内訳書P2!BC9=\"\",\"税抜金額合計(a)\",\"税抜金額小計\")","v":"税抜金額合計(a)"},null,null,null,null,null,null,null,null,null,null,null,null,null,null,null,null,null,null,null,null,null,null,null,null,null,null,null,null,null,null,null,null,null,{"$f":"IF(BC15=\"\",\"\",SUM(BC15:BJ26))","v":""},null,null,null,null,null,null,null,"　※ 軽減税率対象項目",null,null,null,null,null,null,null,null,null,null,null,null,null,null,null,null,null,null,"　    １０％対象消費税",null,null,null,null,null,null,null,null,{"$f":"ROUND(CM22*0.1,0)","v":1000000},null,null,null,null,null,null,null,null,"税抜金額合計(a)",null,null,null,null,null,null,null,null,null,null,null,null,null,null,null,null,null,null,null,null,null,null,null,null,null,null,null,null,null,null,null,null,null,{"$f":"IF(ED15=\"\",\"\",SUM(ED15:EK26))","v":13000000},null,null,null,null,null,null,null,"　※ 軽減税率対象項目"]
[null,null,null,null,null,null,null,null,null,null,null,null,null,null,null,null,null,null,null,null,null,null,null,null,null,null,null,null,null,null,null,null,null,null,null,null,null,null,null,"役　 員",null,null,null,null,null,null,null,null,null,"管 理 部",null,null,null,null,null,null,null,null,null,null,null,null,null,null,"施工部長",null,null,null,null,"現　 場"]
["【提　出　用】"]
[]
[null,null,null,null,null,null,null,null,null,null,null,null,null,null,null,null,null,null,null,null,null,null,null,null,null,null,null,null,null,null,null,"請　求　書",null,null,null,null,null,null,null,null,null,null,null,null,"（",null,null,"外注請求分",null,null,null,null,null,null,null,"一般請求分",null,null,null,null,null,"）",null,null,{"$f":"IF(BM4=\"\",\"\",BM4)","v":""},null,null,null,null,"年",null,{"$f":"IF(BT4=\"\",\"\",BT4)","v":""},null,"月",null,{"$f":"IF(BX4=\"\",\"\",BX4)","v":""},null,"日"]
[]
[{"$f":"A6","v":"株式会社堀内組"},null,null,null,null,null,null,null,null,null,null,null,null,null,null,null,"御中",null,null,null,"取引先\nコード",null,null,null,null,{"$f":"IF(Z6=\"\",\"\",Z6)","v":0},{"$f":"IF(AA6=\"\",\"\",AA6)","v":""},"","","","","",null,null,null,null,null,null,null,null,null,null,null,null,null,null,null,"適格請求書\n発行事業所",null,null,null,null,null,null,null,"登録済（下記に登録番号を記入）",null,null,null,null,null,null,null,null,null,null,null,null,null,null,null,null,"未登録"]
[null,null,null,null,null,null,null,null,null,null,null,null,null,null,null,null,null,null,null,null,"郵便番号",null,null,null,null,{"$f":"IF(Z7=\"\",\"\",Z7)","v":""},"","","－","","","","",null,null,null,null,null,null,null,null,null,null,null,null,null,null,"登録番号",null,null,null,null,null,{"$f":"IF(BB7=\"\",\"\",BB7)","v":"Ｔ"},{"$f":"IF(BC7=\"\",\"\",BC7)","v":""},"－",{"$f":"IF(BE7=\"\",\"\",BE7)","v":""},"","","","－",{"$f":"IF(BJ7=\"\",\"\",BJ7)","v":""},"","","","－",{"$f":"IF(BO7=\"\",\"\",BO7)","v":""},"","",""]
["下記のとおり、御請求申し上げます。",null,null,null,null,null,null,null,null,null,null,null,null,null,null,null,null,null,null,null,"住所",null,null,null,null,{"$f":"IF(Z8=\"\",\"\",Z8)","v":""},null,null,null,null,null,null,null,null,null,null,null,null,null,null,null,null,null,null,null,null,null,"銀 行 名",null,null,null,null,null,{"$f":"IF(BB8=\"\",\"\",BB8)","v":""},null,null,null,null,null,null,{"$f":"IF(BI8=\"\",\"\",BI8)","v":"銀行"},null,null,"支 店 名",null,null,null,null,null,{"$f":"IF(BR8=\"\",\"\",BR8)","v":""},null,null,null,null,null,null,{"$f":"IF(BY8=\"\",\"\",BY8)","v":"支店"}]
["税抜金額 （ａ）",null,null,null,null,null,null,{"$f":"H9","v":0},null,null,null,null,null,null,null,null,null,null,null,null,"会社名",null,null,null,null,{"$f":"IF(Z9=\"\",\"\",Z9)","v":""},null,null,null,null,null,null,null,null,null,null,null,null,null,null,null,null,null,null,"㊞",null,null,"預金種別",null,null,null,null,null,null,null,"普通",null,null,null,null,"当座",null,null,"口座番号",null,null,null,null,null,{"$f":"IF(BR9=\"\",\"\",BR9)","v":""}]
["消費税額 （ｂ）",null,null,null,null,null,null,{"$f":"H10","v":0},null,null,null,null,null,null,null,null,null,null,null,null,"代表者名",null,null,null,null,{"$f":"IF(Z10=\"\",\"\",Z10)","v":""},null,null,null,null,null,null,null,null,null,null,null,null,null,null,null,null,null,null,null,null,null,"（フリガナ）\n口座名義",null,null,null,null,null,{"$f":"IF(BB10=\"\",\"\",BB10)","v":""}]
["[税込金額]",null,null,null,null,null,null,{"$f":"H11","v":0},null,null,null,null,null,null,null,null,null,null,null,null,"電話番号",null,null,null,null,"",null,null,null,null,null,null,null,null,null,null,null,null,null,null,null,null,null,null,null,null,null,null,null,null,null,null,null,{"$f":"IF(BB11=\"\",\"\",BB11)","v":""}]
[]
["契約事項",null,"注   文   №",null,null,null,null,{"$f":"IF(H13=\"\",\"\",H13)","v":""},{"$f":"IF(I13=\"\",\"\",I13)","v":""},"","","","","","","","","","",null,"工事コード",null,null,null,null,{"$f":"IF(Z13=\"\",\"\",Z13)","v":""},{"$f":"IF(AA13=\"\",\"\",AA13)","v":""},"","","","","","","","","工事名",null,null,null,null,null,{"$f":"IF(AP13=\"\",\"\",AP13)","v":""}]
[null,null,"支 払 条 件",null,null,null,null,"現金",null,null,{"$f":"IF(K14=\"\",\"\",K14)","v":""},null,"％","手形",null,null,{"$f":"IF(Q14=\"\",\"\",Q14)","v":""},null,"％",null,"日付",null,"摘　　　要",null,null,null,null,null,null,null,null,null,null,null,null,null,null,null,"税区分",null,null,"数　量",null,null,null,"単 位",null,null,"単　価",null,null,null,null,null,"税抜金額",null,null,null,null,null,null,null,"工種コード",null,null,null,"要素コード",null,null,null,null,null,"備　　考"]
[null,null,"現契約金額",null,null,null,null,{"$f":"IF(H15=\"\",\"\",H15)","v":""},null,null,null,null,null,null,null,null,null,null,null,null,{"$f":"IF(U15=\"\",\"\",U15)","v":""},{"$f":"IF(V15=\"\",\"\",V15)","v":""},{"$f":"IF(W15=\"\",\"\",W15)","v":""},null,null,null,null,null,null,null,null,null,null,null,null,null,null,null,{"$f":"IF(AM15=\"\",\"\",AM15)","v":""},null,null,{"$f":"IF(AP15=\"\",\"\",AP15)","v":""},null,null,null,{"$f":"IF(AT15=\"\",\"\",AT15)","v":""},null,null,{"$f":"IF(AW15=\"\",\"\",AW15)","v":""},null,null,null,null,null,{"$f":"IF(BC15=\"\",\"\",BC15)","v":""}]
[null,null,"増 減 金 額",null,null,null,null,{"$f":"IF(H16=\"\",\"\",H16)","v":""},null,null,null,null,null,null,null,null,null,null,null,null,{"$f":"IF(U16=\"\",\"\",U16)","v":""},"","",null,null,null,null,null,null,null,null,null,null,null,null,null,null,null,{"$f":"IF(AM16=\"\",\"\",AM16)","v":""},null,null,{"$f":"IF(AP16=\"\",\"\",AP16)","v":""},null,null,null,{"$f":"IF(AT16=\"\",\"\",AT16)","v":""},null,null,{"$f":"IF(AW16=\"\",\"\",AW16)","v":""},null,null,null,null,null,{"$f":"IF(BC16=\"\",\"\",BC16)","v":""}]
[null,null,"合　　　　 計",null,null,null,null,0,null,null,null,null,null,null,null,null,null,null,null,null,"","","",null,null,null,null,null,null,null,null,null,null,null,null,null,null,null,"",null,null,"",null,null,null,"",null,null,"",null,null,null,null,null,""]
[null,null,null,null,null,null,null,null,null,null,null,null,null,null,null,null,null,null,null,null,"","","",null,null,null,null,null,null,null,null,null,null,null,null,null,null,null,"",null,null,"",null,null,null,"",null,null,"",null,null,null,null,null,""]
["　　　【税抜金額合計】　(a)",null,null,null,null,null,null,null,null,null,null,{"$f":"L19","v":0},null,null,null,null,null,null,null,null,"","","",null,null,null,null,null,null,null,null,null,null,null,null,null,null,null,"",null,null,"",null,null,null,"",null,null,"",null,null,null,null,null,""]
[null,null,"　　　非課税対象",null,null,null,null,null,null,null,null,{"$f":"L20","v":0},null,null,null,null,null,null,null,null,"","","",null,null,null,null,null,null,null,null,null,null,null,null,null,null,null,"",null,null,"",null,null,null,"",null,null,"",null,null,null,null,null,""]
[null,null,"　 ※ ８％対象",null,null,null,null,null,null,null,null,0,null,null,null,null,null,null,null,null,"","","",null,null,null,null,null,null,null,null,null,null,null,null,null,null,null,"",null,null,"",null,null,null,"",null,null,"",null,null,null,null,null,""]
[null,null,"　 　１０％対象",null,null,null,null,null,null,null,null,0,null,null,null,null,null,null,null,null,"","","",null,null,null,null,null,null,null,null,null,null,null,null,null,null,null,"",null,null,"",null,null,null,"",null,null,"",null,null,null,null,null,""]
[null,null,null,null,null,null,null,null,null,null,null,null,null,null,null,null,null,null,null,null,"","","",null,null,null,null,null,null,null,null,null,null,null,null,null,null,null,"",null,null,"",null,null,null,"",null,null,"",null,null,null,null,null,""]
["　　　【消費税金額合計】(b)",null,null,null,null,null,null,null,null,null,null,0,null,null,null,null,null,null,null,null,"","","",null,null,null,null,null,null,null,null,null,null,null,null,null,null,null,"",null,null,"",null,null,null,"",null,null,"",null,null,null,null,null,""]
[null,null,"　　　非 課 税",null,null,null,null,null,null,null,null,0,null,null,null,null,null,null,null,null,"","","",null,null,null,null,null,null,null,null,null,null,null,null,null,null,null,"",null,null,"",null,null,null,"",null,null,"",null,null,null,null,null,""]
[null,null,"　　※８％対象消費税",null,null,null,null,null,null,null,null,0,null,null,null,null,null,null,null,null,"","","",null,null,null,null,null,null,null,null,null,null,null,null,null,null,null,"",null,null,"",null,null,null,"",null,null,"",null,null,null,null,null,""]
[null,null,"　    １０％対象消費税",null,null,null,null,null,null,null,null,0,null,null,null,null,null,null,null,null,{"$f":"U27","v":"税抜金額合計(a)"},null,null,null,null,null,null,null,null,null,null,null,null,null,null,null,null,null,null,null,null,null,null,null,null,null,null,null,null,null,null,null,null,null,"",null,null,null,null,null,null,null,"　※ 軽減税率対象項目"]

{"sheet":"請求内訳書P2","index":4,"n_rows":58,"n_cols":93,"rows_kept":58,"cut":false,"hidden":false,"merged":[[4,64,4,68],[4,69,4,70],[4,71,4,72],[4,73,4,74],[4,75,4,76],[4,77,4,78],[1,0,1,14],[4,31,4,43],[4,45,4,46],[4,47,4,52],[4,53,4,54],[4,55,4,60],[2,60,2,78],[2,54,2,59],[6,20,6,24],[6,35,6,40],[6,41,6,78],[7,20,7,21],[7,22,7,37],[7,38,7,40],[7,41,7,44],[7,45,7,47],[7,48,7,53],[7,54,7,61],[7,62,7,65],[7,66,7,71],[7,72,7,78],[8,22,8,37],[8,38,8,40],[8,41,8,44],[8,45,8,47],[8,48,8,53],[8,54,8,61],[8,62,25,65],[10,38,10,40],[10,41,10,44],[10,45,10,47],[10,48,10,53],[10,54,10,61],[11,54,11,61],[10,72,10,78],[8,66,25,71],[8,72,8,78],[9,22,9,37],[9,38,9,40],[9,41,9,44],[9,45,9,47],[9,48,9,53],[9,54,9,61],[9,72,9,78],[10,22,10,37],[11,72,11,78],[12,22,12,37],[12,38,12,40],[12,41,12,44],[12,45,12,47],[12,48,12,53],[12,54,12,61],[12,72,12,78],[11,22,11,37],[11,38,11,40],[11,41,11,44],[11,45,11,47],[11,48,11,53],[13,72,13,78],[14,22,14,37],[14,38,14,40],[14,41,14,44],[14,45,14,47],[14,48,14,53],[14,54,14,61],[14,72,14,78],[13,22,13,37],[13,38,13,40],[13,41,13,44],[13,45,13,47],[13,48,13,53],[13,54,13,61],[15,72,15,78],[16,22,16,37],[16,38,16,40],[16,41,16,44],[16,45,16,47],[16,48,16,53],[16,54,16,61],[16,72,16,78],[15,22,15,37],[15,38,15,40],[15,41,15,44],[15,45,15,47],[15,48,15,53],[15,54,15,61],[17,72,17,78],[18,22,18,37],[18,38,18,40],[18,41,18,44],[18,45,18,47],[18,48,18,53],[18,54,18,61],[18,72,18,78],[17,22,17,37],[17,38,17,40],[17,41,17,44],[17,45,17,47],[17,48,17,53],[17,54,17,61],[19,72,19,78],[20,22,20,37],[20,38,20,40],[20,41,20,44],[20,45,20,47],[20,48,20,53],[20,54,20,61],[20,72,20,78],[19,22,19,37],[19,38,19,40],[19,41,19,44],[19,45,19,47],[19,48,19,53],[19,54,19,61],[21,72,21,78],[22,22,22,37],[22,38,22,40],[22,41,22,44],[22,45,22,47],[22,48,22,53],[22,54,22,61],[22,72,22,78],[21,22,21,37],[21,38,21,40],[21,41,21,44],[21,45,21,47],[21,48,21,53],[21,54,21,61],[23,72,23,78],[24,22,24,37],[24,38,24,40],[24,41,24,44],[24,45,24,47],[24,48,24,53],[24,54,24,61],[24,72,24,78],[23,22,23,37],[23,38,23,40],[23,41,23,44],[23,45,23,47],[23,48,23,53],[23,54,23,61],[24,81,24,91],[24,92,24,99],[25,22,25,37],[25,38,25,40],[25,41,25,44],[25,45,25,47],[25,48,25,53],[25,54,25,61],[25,72,25,78],[25,81,27,82],[27,20,27,53],[27,54,27,61],[27,62,27,78],[27,83,27,91],[27,92,27,99],[28,76,28,78],[25,83,25,91],[25,92,25,99],[26,20,26,53],[26,54,26,61],[26,62,26,78],[26,83,26,91],[26,92,26,99],[30,0,30,14],[31,60,31,78],[31,54,31,59],[36,20,36,21],[36,22,36,37],[36,38,36,40],[36,41,36,44],[36,45,36,47],[36,48,36,53],[33,71,33,72],[33,73,33,74],[33,75,33,76],[33,77,33,78],[35,20,35,24],[35,35,35,40],[35,41,35,78],[33,31,33,43],[33,45,33,46],[33,47,33,52],[33,53,33,54],[33,55,33,60],[33,64,33,68],[33,69,33,70],[37,72,37,78],[38,22,38,37],[38,38,38,40],[38,41,38,44],[38,45,38,47],[38,48,38,53],[38,54,38,61],[38,72,38,78],[36,54,36,61],[36,62,36,65],[36,66,36,71],[36,72,36,78],[37,22,37,37],[37,38,37,40],[37,41,37,44],[37,45,37,47],[37,48,37,53],[37,54,37,61],[39,72,39,78],[40,22,40,37],[40,38,40,40],[40,41,40,44],[40,45,40,47],[40,48,40,53],[40,54,40,61],[40,72,40,78],[39,22,39,37],[39,38,39,40],[39,41,39,44],[39,45,39,47],[39,48,39,53],[39,54,39,61],[41,72,41,78],[42,22,42,37],[42,38,42,40],[42,41,42,44],[42,45,42,47],[42,48,42,53],[42,54,42,61],[42,72,42,78],[41,22,41,37],[41,38,41,40],[41,41,41,44],[41,45,41,47],[41,48,41,53],[41,54,41,61],[43,72,43,78],[44,22,44,37],[44,38,44,40],[44,41,44,44],[44,45,44,47],[44,48,44,53],[44,54,44,61],[44,72,44,78],[43,22,43,37],[43,38,43,40],[43,41,43,44],[43,45,43,47],[43,48,43,53],[43,54,43,61],[45,72,45,78],[46,22,46,37],[46,38,46,40],[46,41,46,44],[46,45,46,47],[46,48,46,53],[46,54,46,61],[46,72,46,78],[45,22,45,37],[45,38,45,40],[45,41,45,44],[45,45,45,47],[45,48,45,53],[45,54,45,61],[47,72,47,78],[48,22,48,37],[48,38,48,40],[48,41,48,44],[48,45,48,47],[48,48,48,53],[48,54,48,61],[48,72,48,78],[47,22,47,37],[47,38,47,40],[47,41,47,44],[47,45,47,47],[47,48,47,53],[47,54,47,61],[49,72,49,78],[50,22,50,37],[50,38,50,40],[50,41,50,44],[50,45,50,47],[50,48,50,53],[50,54,50,61],[50,72,50,78],[49,22,49,37],[49,38,49,40],[49,41,49,44],[49,45,49,47],[49,48,49,53],[49,54,49,61],[51,72,51,78],[52,22,52,37],[52,38,52,40],[52,41,52,44],[52,45,52,47],[52,48,52,53],[52,54,52,61],[52,72,52,78],[51,22,51,37],[51,38,51,40],[51,41,51,44],[51,45,51,47],[51,48,51,53],[51,54,51,61],[57,76,57,78],[55,20,55,53],[55,54,55,61],[55,62,55,78],[56,20,56,53],[56,54,56,61],[56,62,56,78],[53,72,53,78],[54,22,54,37],[54,38,54,40],[54,41,54,44],[54,45,54,47],[54,48,54,53],[54,54,54,61],[54,72,54,78],[53,22,53,37],[53,38,53,40],[53,41,53,44],[53,45,53,47],[53,48,53,53],[53,54,53,61]]}
[]
["【取引先控】"]
[null,null,null,null,null,null,null,null,null,null,null,null,null,null,null,null,null,null,null,null,null,null,null,null,null,null,null,null,null,null,null,null,null,null,null,null,null,null,null,null,null,null,null,null,null,null,null,null,null,null,null,null,null,null,"会社名",null,null,null,null,null,{"$f":"IF(協力業者発行請求書P1!Z9=\"\",\"\",協力業者発行請求書P1!Z9)","v":""}]
[null,null,null,null,null,null,null,null,null,null,null,null,null,null,null,null,null,null,null,null,null,null,null,null,null,null,null,null,null,null,null,null,null,null,null,null,null,null,null,null,null,null,null,null,false,null,null,null,null,null,null,null,null,false]
[null,null,null,null,null,null,null,null,null,null,null,null,null,null,null,null,null,null,null,null,null,null,null,null,null,null,null,null,null,null,null,"請求内訳書",null,null,null,null,null,null,null,null,null,null,null,null,"（",null,null,"外注請求分",null,null,null,null,null,null,null,"一般請求分",null,null,null,null,null,"）",null,null,{"$f":"IF(協力業者発行請求書P1!BM4=\"\",\"\",協力業者発行請求書P1!BM4)","v":""},null,null,null,null,"年",null,{"$f":"IF(協力業者発行請求書P1!BT4=\"\",\"\",協力業者発行請求書P1!BT4)","v":""},null,"月",null,{"$f":"IF(協力業者発行請求書P1!BX4=\"\",\"\",協力業者発行請求書P1!BX4)","v":""},null,"日"]
[]
[null,null,null,null,null,null,null,null,null,null,null,null,null,null,null,null,null,null,null,null,"工事コード",null,null,null,null,{"$f":"IF(協力業者発行請求書P1!Z13=\"\",\"\",協力業者発行請求書P1!Z13)","v":""},{"$f":"IF(協力業者発行請求書P1!AA13=\"\",\"\",協力業者発行請求書P1!AA13)","v":""},{"$f":"IF(協力業者発行請求書P1!AB13=\"\",\"\",協力業者発行請求書P1!AB13)","v":""},{"$f":"IF(協力業者発行請求書P1!AC13=\"\",\"\",協力業者発行請求書P1!AC13)","v":""},{"$f":"IF(協力業者発行請求書P1!AD13=\"\",\"\",協力業者発行請求書P1!AD13)","v":""},{"$f":"IF(協力業者発行請求書P1!AE13=\"\",\"\",協力業者発行請求書P1!AE13)","v":""},{"$f":"IF(協力業者発行請求書P1!AF13=\"\",\"\",協力業者発行請求書P1!AF13)","v":""},{"$f":"IF(協力業者発行請求書P1!AG13=\"\",\"\",協力業者発行請求書P1!AG13)","v":""},{"$f":"IF(協力業者発行請求書P1!AH13=\"\",\"\",協力業者発行請求書P1!AH13)","v":""},{"$f":"IF(協力業者発行請求書P1!AI13=\"\",\"\",協力業者発行請求書P1!AI13)","v":""},"工事名",null,null,null,null,null,{"$f":"IF(協力業者発行請求書P1!AP13=\"\",\"\",協力業者発行請求書P1!AP13)","v":""}]
[null,null,null,null,null,null,null,null,null,null,null,null,null,null,null,null,null,null,null,null,"日付",null,"摘　　　要",null,null,null,null,null,null,null,null,null,null,null,null,null,null,null,"税区分",null,null,"数　量",null,null,null,"単 位",null,null,"単　価",null,null,null,null,null,"税抜金額",null,null,null,null,null,null,null,"工種コード",null,null,null,"要素コード",null,null,null,null,null,"備　　考"]
[null,null,null,null,null,null,null,null,null,null,null,null,null,null,null,null,null,null,null,null,null,null,null,null,null,null,null,null,null,null,null,null,null,null,null,null,null,null,null,null,null,null,null,null,null,null,null,null,null,null,null,null,null,null,{"$f":"IF(AP9=\"\",\"\",ROUND(AP9*AW9,0))","v":""}]
[null,null,null,null,null,null,null,null,null,null,null,null,null,null,null,null,null,null,null,null,null,null,null,null,null,null,null,null,null,null,null,null,null,null,null,null,null,null,null,null,null,null,null,null,null,null,null,null,null,null,null,null,null,null,{"$f":"IF(AP10=\"\",\"\",ROUND(AP10*AW10,0))","v":""}]
[null,null,null,null,null,null,null,null,null,null,null,null,null,null,null,null,null,null,null,null,null,null,null,null,null,null,null,null,null,null,null,null,null,null,null,null,null,null,null,null,null,null,null,null,null,null,null,null,null,null,null,null,null,null,""]
[null,null,null,null,null,null,null,null,null,null,null,null,null,null,null,null,null,null,null,null,null,null,null,null,null,null,null,null,null,null,null,null,null,null,null,null,null,null,null,null,null,null,null,null,null,null,null,null,null,null,null,null,null,null,""]
[null,null,null,null,null,null,null,null,null,null,null,null,null,null,null,null,null,null,null,null,null,null,null,null,null,null,null,null,null,null,null,null,null,null,null,null,null,null,null,null,null,null,null,null,null,null,null,null,null,null,null,null,null,null,""]
[null,null,null,null,null,null,null,null,null,null,null,null,null,null,null,null,null,null,null,null,null,null,null,null,null,null,null,null,null,null,null,null,null,null,null,null,null,null,null,null,null,null,null,null,null,null,null,null,null,null,null,null,null,null,""]
[null,null,null,null,null,null,null,null,null,null,null,null,null,null,null,null,null,null,null,null,null,null,null,null,null,null,null,null,null,null,null,null,null,null,null,null,null,null,null,null,null,null,null,null,null,null,null,null,null,null,null,null,null,null,""]
[null,null,null,null,null,null,null,null,null,null,null,null,null,null,null,null,null,null,null,null,null,null,null,null,null,null,null,null,null,null,null,null,null,null,null,null,null,null,null,null,null,null,null,null,null,null,null,null,null,null,null,null,null,null,""]
[null,null,null,null,null,null,null,null,null,null,null,null,null,null,null,null,null,null,null,null,null,null,null,null,null,null,null,null,null,null,null,null,null,null,null,null,null,null,null,null,null,null,null,null,null,null,null,null,null,null,null,null,null,null,""]
[null,null,null,null,null,null,null,null,null,null,null,null,null,null,null,null,null,null,null,null,null,null,null,null,null,null,null,null,null,null,null,null,null,null,null,null,null,null,null,null,null,null,null,null,null,null,null,null,null,null,null,null,null,null,""]
[null,null,null,null,null,null,null,null,null,null,null,null,null,null,null,null,null,null,null,null,null,null,null,null,null,null,null,null,null,null,null,null,null,null,null,null,null,null,null,null,null,null,null,null,null,null,null,null,null,null,null,null,null,null,""]
[null,null,null,null,null,null,null,null,null,null,null,null,null,null,null,null,null,null,null,null,null,null,null,null,null,null,null,null,null,null,null,null,null,null,null,null,null,null,null,null,null,null,null,null,null,null,null,null,null,null,null,null,null,null,""]
[null,null,null,null,null,null,null,null,null,null,null,null,null,null,null,null,null,null,null,null,null,null,null,null,null,null,null,null,null,null,null,null,null,null,null,null,null,null,null,null,null,null,null,null,null,null,null,null,null,null,null,null,null,null,""]
[null,null,null,null,null,null,null,null,null,null,null,null,null,null,null,null,null,null,null,null,null,null,null,null,null,null,null,null,null,null,null,null,null,null,null,null,null,null,null,null,null,null,null,null,null,null,null,null,null,null,null,null,null,null,""]
[null,null,null,null,null,null,null,null,null,null,null,null,null,null,null,null,null,null,null,null,null,null,null,null,null,null,null,null,null,null,null,null,null,null,null,null,null,null,null,null,null,null,null,null,null,null,null,null,null,null,null,null,null,null,"",null,null,null,null,null,null,null,null,null,null,null,null,null,null,null,null,null,null,null,null,null,null,null,null,null,null,"[●計算用項目]"]
[null,null,null,null,null,null,null,null,null,null,null,null,null,null,null,null,null,null,null,null,null,null,null,null,null,null,null,null,null,null,null,null,null,null,null,null,null,null,null,null,null,null,null,null,null,null,null,null,null,null,null,null,null,null,""]
[null,null,null,null,null,null,null,null,null,null,null,null,null,null,null,null,null,null,null,null,null,null,null,null,null,null,null,null,null,null,null,null,null,null,null,null,null,null,null,null,null,null,null,null,null,null,null,null,null,null,null,null,null,null,"",null,null,null,null,null,null,null,null,null,null,null,null,null,null,null,null,null,null,null,null,null,null,null,null,null,null,"　　　【税抜金額合計】　(a)",null,null,null,null,null,null,null,null,null,null,{"$f":"SUM(CO26:CV28)","v":0}]
[null,null,null,null,null,null,null,null,null,null,null,null,null,null,null,null,null,null,null,null,null,null,null,null,null,null,null,null,null,null,null,null,null,null,null,null,null,null,null,null,null,null,null,null,null,null,null,null,null,null,null,null,null,null,"",null,null,null,null,null,null,null,null,null,null,null,null,null,null,null,null,null,null,null,null,null,null,null,null,null,null,null,null,"　　　非課税対象",null,null,null,null,null,null,null,null,{"$f":"SUMIF($AM$9:$AO$26,\"非\",$BC$9:$BJ$26)","v":0}]
[null,null,null,null,null,null,null,null,null,null,null,null,null,null,null,null,null,null,null,null,"税抜金額小計   ",null,null,null,null,null,null,null,null,null,null,null,null,null,null,null,null,null,null,null,null,null,null,null,null,null,null,null,null,null,null,null,null,null,{"$f":"IF(BC9=\"\",\"\",SUM(BC9:BJ26))","v":""},null,null,null,null,null,null,null,null,null,null,null,null,null,null,null,null,null,null,null,null,null,null,null,null,null,null,null,null,"　 ※ ８％対象",null,null,null,null,null,null,null,null,{"$f":"SUMIF($AM$9:$AO$26,\"※\",$BC$9:$BJ$26)","v":0}]
[null,null,null,null,null,null,null,null,null,null,null,null,null,null,null,null,null,null,null,null,"税抜金額合計(a)",null,null,null,null,null,null,null,null,null,null,null,null,null,null,null,null,null,null,null,null,null,null,null,null,null,null,null,null,null,null,null,null,null,{"$f":"IF(請求内訳書P3!BC9=\"\",SUM(協力業者発行請求書P1!BC27,請求内訳書P2!BC27),\"\")","v":0},null,null,null,null,null,null,null,"　※ 軽減税率対象項目",null,null,null,null,null,null,null,null,null,null,null,null,null,null,null,null,null,null,null,null,"　 　１０％対象",null,null,null,null,null,null,null,null,{"$f":"SUMIF($AM$9:$AO$26,\"\",$BC$9:$BJ$26)","v":0}]
[null,null,null,null,null,null,null,null,null,null,null,null,null,null,null,null,null,null,null,null,null,null,null,null,null,null,null,null,null,null,null,null,null,null,null,null,null,null,null,null,null,null,null,null,null,null,null,null,null,null,null,null,null,null,null,null,null,null,null,null,null,null,null,null,null,null,null,null,null,null,null,null,null,null,null,null,"P2"]
[]
["【提　出　用】"]
[null,null,null,null,null,null,null,null,null,null,null,null,null,null,null,null,null,null,null,null,null,null,null,null,null,null,null,null,null,null,null,null,null,null,null,null,null,null,null,null,null,null,null,null,null,null,null,null,null,null,null,null,null,null,"会社名",null,null,null,null,null,{"$f":"IF(BI3=\"\",\"\",BI3)","v":""}]
[]
[null,null,null,null,null,null,null,null,null,null,null,null,null,null,null,null,null,null,null,null,null,null,null,null,null,null,null,null,null,null,null,"請求内訳書",null,null,null,null,null,null,null,null,null,null,null,null,"（",null,null,"外注請求分",null,null,null,null,null,null,null,"一般請求分",null,null,null,null,null,"）",null,null,{"$f":"IF(BM5=\"\",\"\",BM5)","v":""},null,null,null,null,"年",null,{"$f":"IF(BT5=\"\",\"\",BT5)","v":""},null,"月",null,{"$f":"IF(BX5=\"\",\"\",BX5)","v":""},null,"日"]
[]
[null,null,null,null,null,null,null,null,null,null,null,null,null,null,null,null,null,null,null,null,"工事コード",null,null,null,null,{"$f":"IF(Z7=\"\",\"\",Z7)","v":""},{"$f":"IF(AA7=\"\",\"\",AA7)","v":""},"","","","","","","","","工事名",null,null,null,null,null,{"$f":"IF(AP7=\"\",\"\",AP7)","v":""}]
[null,null,null,null,null,null,null,null,null,null,null,null,null,null,null,null,null,null,null,null,"日付",null,"摘　　　要",null,null,null,null,null,null,null,null,null,null,null,null,null,null,null,"税区分",null,null,"数　量",null,null,null,"単 位",null,null,"単　価",null,null,null,null,null,"税抜金額",null,null,null,null,null,null,null,"工種コード",null,null,null,"要素コード",null,null,null,null,null,"備　　考"]
[null,null,null,null,null,null,null,null,null,null,null,null,null,null,null,null,null,null,null,null,{"$f":"IF(U9=\"\",\"\",U9)","v":""},{"$f":"IF(V9=\"\",\"\",V9)","v":""},{"$f":"IF(W9=\"\",\"\",W9)","v":""},null,null,null,null,null,null,null,null,null,null,null,null,null,null,null,{"$f":"IF(AM9=\"\",\"\",AM9)","v":""},null,null,{"$f":"IF(AP9=\"\",\"\",AP9)","v":""},null,null,null,{"$f":"IF(AT9=\"\",\"\",AT9)","v":""},null,null,{"$f":"IF(AW9=\"\",\"\",AW9)","v":""},null,null,null,null,null,{"$f":"IF(BC9=\"\",\"\",BC9)","v":""}]
[null,null,null,null,null,null,null,null,null,null,null,null,null,null,null,null,null,null,null,null,{"$f":"IF(U10=\"\",\"\",U10)","v":""},"","",null,null,null,null,null,null,null,null,null,null,null,null,null,null,null,{"$f":"IF(AM10=\"\",\"\",AM10)","v":""},null,null,{"$f":"IF(AP10=\"\",\"\",AP10)","v":""},null,null,null,{"$f":"IF(AT10=\"\",\"\",AT10)","v":""},null,null,{"$f":"IF(AW10=\"\",\"\",AW10)","v":""},null,null,null,null,null,{"$f":"IF(BC10=\"\",\"\",BC10)","v":""}]
[null,null,null,null,null,null,null,null,null,null,null,null,null,null,null,null,null,null,null,null,"","","",null,null,null,null,null,null,null,null,null,null,null,null,null,null,null,"",null,null,"",null,null,null,"",null,null,"",null,null,null,null,null,""]
[null,null,null,null,null,null,null,null,null,null,null,null,null,null,null,null,null,null,null,null,"","","",null,null,null,null,null,null,null,null,null,null,null,null,null,null,null,"",null,null,"",null,null,null,"",null,null,"",null,null,null,null,null,""]
[null,null,null,null,null,null,null,null,null,null,null,null,null,null,null,null,null,null,null,null,"","","",null,null,null,null,null,null,null,null,null,null,null,null,null,null,null,"",null,null,"",null,null,null,"",null,null,"",null,null,null,null,null,""]
[null,null,null,null,null,null,null,null,null,null,null,null,null,null,null,null,null,null,null,null,"","","",null,null,null,null,null,null,null,null,null,null,null,null,null,null,null,"",null,null,"",null,null,null,"",null,null,"",null,null,null,null,null,""]
[null,null,null,null,null,null,null,null,null,null,null,null,null,null,null,null,null,null,null,null,"","","",null,null,null,null,null,null,null,null,null,null,null,null,null,null,null,"",null,null,"",null,null,null,"",null,null,"",null,null,null,null,null,""]
[null,null,null,null,null,null,null,null,null,null,null,null,null,null,null,null,null,null,null,null,"","","",null,null,null,null,null,null,null,null,null,null,null,null,null,null,null,"",null,null,"",null,null,null,"",null,null,"",null,null,null,null,null,""]
[null,null,null,null,null,null,null,null,null,null,null,null,null,null,null,null,null,null,null,null,"","","",null,null,null,null,null,null,null,null,null,null,null,null,null,null,null,"",null,null,"",null,null,null,"",null,null,"",null,null,null,null,null,""]
[null,null,null,null,null,null,null,null,null,null,null,null,null,null,null,null,null,null,null,null,"","","",null,null,null,null,null,null,null,null,null,null,null,null,null,null,null,"",null,null,"",null,null,null,"",null,null,"",null,null,null,null,null,""]
[null,null,null,null,null,null,null,null,null,null,null,null,null,null,null,null,null,null,null,null,"","","",null,null,null,null,null,null,null,null,null,null,null,null,null,null,null,"",null,null,"",null,null,null,"",null,null,"",null,null,null,null,null,""]
[null,null,null,null,null,null,null,null,null,null,null,null,null,null,null,null,null,null,null,null,"","","",null,null,null,null,null,null,null,null,null,null,null,null,null,null,null,"",null,null,"",null,null,null,"",null,null,"",null,null,null,null,null,""]
[null,null,null,null,null,null,null,null,null,null,null,null,null,null,null,null,null,null,null,null,"","","",null,null,null,null,null,null,null,null,null,null,null,null,null,null,null,"",null,null,"",null,null,null,"",null,null,"",null,null,null,null,null,""]
[null,null,null,null,null,null,null,null,null,null,null,null,null,null,null,null,null,null,null,null,"","","",null,null,null,null,null,null,null,null,null,null,null,null,null,null,null,"",null,null,"",null,null,null,"",null,null,"",null,null,null,null,null,""]
[null,null,null,null,null,null,null,null,null,null,null,null,null,null,null,null,null,null,null,null,"","","",null,null,null,null,null,null,null,null,null,null,null,null,null,null,null,"",null,null,"",null,null,null,"",null,null,"",null,null,null,null,null,""]
[null,null,null,null,null,null,null,null,null,null,null,null,null,null,null,null,null,null,null,null,"","","",null,null,null,null,null,null,null,null,null,null,null,null,null,null,null,"",null,null,"",null,null,null,"",null,null,"",null,null,null,null,null,""]
[null,null,null,null,null,null,null,null,null,null,null,null,null,null,null,null,null,null,null,null,"","","",null,null,null,null,null,null,null,null,null,null,null,null,null,null,null,"",null,null,"",null,null,null,"",null,null,"",null,null,null,null,null,""]
[null,null,null,null,null,null,null,null,null,null,null,null,null,null,null,null,null,null,null,null,{"$f":"IF(U26=\"\",\"\",U26)","v":""},"","",null,null,null,null,null,null,null,null,null,null,null,null,null,null,null,"",null,null,"",null,null,null,"",null,null,"",null,null,null,null,null,""]
[null,null,null,null,null,null,null,null,null,null,null,null,null,null,null,null,null,null,null,null,"税抜金額小計   ",null,null,null,null,null,null,null,null,null,null,null,null,null,null,null,null,null,null,null,null,null,null,null,null,null,null,null,null,null,null,null,null,null,""]
[null,null,null,null,null,null,null,null,null,null,null,null,null,null,null,null,null,null,null,null,"税抜金額合計(a)",null,null,null,null,null,null,null,null,null,null,null,null,null,null,null,null,null,null,null,null,null,null,null,null,null,null,null,null,null,null,null,null,null,0,null,null,null,null,null,null,null,"　※ 軽減税率対象項目"]
[null,null,null,null,null,null,null,null,null,null,null,null,null,null,null,null,null,null,null,null,null,null,null,null,null,null,null,null,null,null,null,null,null,null,null,null,null,null,null,null,null,null,null,null,null,null,null,null,null,null,null,null,null,null,null,null,null,null,null,null,null,null,null,null,null,null,null,null,null,null,null,null,null,null,null,null,"P2"]

{"sheet":"請求内訳書P3","index":5,"n_rows":58,"n_cols":93,"rows_kept":58,"cut":false,"hidden":false,"merged":[[28,76,28,78],[7,72,7,78],[10,72,10,78],[8,66,25,71],[8,72,8,78],[9,72,9,78],[11,72,11,78],[15,72,15,78],[17,72,17,78],[19,72,19,78],[21,72,21,78],[23,72,23,78],[1,0,1,14],[4,31,4,43],[4,45,4,46],[4,47,4,52],[4,53,4,54],[4,55,4,60],[2,60,2,78],[6,20,6,24],[6,35,6,40],[6,41,6,78],[2,54,2,59],[4,64,4,68],[4,69,4,70],[4,71,4,72],[4,73,4,74],[4,75,4,76],[4,77,4,78],[7,20,7,21],[7,22,7,37],[7,38,7,40],[7,41,7,44],[7,45,7,47],[7,48,7,53],[7,54,7,61],[7,62,7,65],[7,66,7,71],[8,22,8,37],[8,38,8,40],[8,41,8,44],[8,45,8,47],[8,48,8,53],[8,54,8,61],[8,62,25,65],[10,38,10,40],[10,41,10,44],[10,45,10,47],[10,48,10,53],[10,54,10,61],[11,54,11,61],[9,22,9,37],[9,38,9,40],[9,41,9,44],[9,45,9,47],[9,48,9,53],[9,54,9,61],[10,22,10,37],[12,22,12,37],[12,38,12,40],[12,41,12,44],[12,45,12,47],[12,48,12,53],[12,54,12,61],[12,72,12,78],[11,22,11,37],[11,38,11,40],[11,41,11,44],[11,45,11,47],[11,48,11,53],[13,72,13,78],[14,22,14,37],[14,38,14,40],[14,41,14,44],[14,45,14,47],[14,48,14,53],[14,54,14,61],[14,72,14,78],[13,22,13,37],[13,38,13,40],[13,41,13,44],[13,45,13,47],[13,48,13,53],[13,54,13,61],[16,22,16,37],[16,38,16,40],[16,41,16,44],[16,45,16,47],[16,48,16,53],[16,54,16,61],[16,72,16,78],[15,22,15,37],[15,38,15,40],[15,41,15,44],[15,45,15,47],[15,48,15,53],[15,54,15,61],[18,22,18,37],[18,38,18,40],[18,41,18,44],[18,45,18,47],[18,48,18,53],[18,54,18,61],[18,72,18,78],[17,22,17,37],[17,38,17,40],[17,41,17,44],[17,45,17,47],[17,48,17,53],[17,54,17,61],[20,22,20,37],[20,38,20,40],[20,41,20,44],[20,45,20,47],[20,48,20,53],[20,54,20,61],[20,72,20,78],[19,22,19,37],[19,38,19,40],[19,41,19,44],[19,45,19,47],[19,48,19,53],[19,54,19,61],[22,22,22,37],[22,38,22,40],[22,41,22,44],[22,45,22,47],[22,48,22,53],[22,54,22,61],[22,72,22,78],[21,22,21,37],[21,38,21,40],[21,41,21,44],[21,45,21,47],[21,48,21,53],[21,54,21,61],[24,41,24,44],[24,45,24,47],[24,48,24,53],[24,54,24,61],[24,72,24,78],[23,22,23,37],[23,38,23,40],[23,41,23,44],[23,45,23,47],[23,48,23,53],[23,54,23,61],[24,81,24,91],[24,92,24,99],[25,22,25,37],[25,38,25,40],[25,41,25,44],[25,45,25,47],[25,48,25,53],[25,54,25,61],[25,72,25,78],[25,81,27,82],[27,20,27,53],[27,54,27,61],[27,62,27,78],[27,83,27,91],[27,92,27,99],[25,83,25,91],[25,92,25,99],[26,20,26,53],[26,54,26,61],[26,62,26,78],[26,83,26,91],[26,92,26,99],[24,22,24,37],[24,38,24,40],[30,0,30,14],[33,77,33,78],[35,20,35,24],[35,35,35,40],[35,41,35,78],[33,31,33,43],[33,45,33,46],[33,47,33,52],[33,53,33,54],[33,55,33,60],[33,64,33,68],[33,69,33,70],[31,60,31,78],[31,54,31,59],[36,20,36,21],[36,22,36,37],[36,38,36,40],[36,41,36,44],[36,45,36,47],[36,48,36,53],[33,71,33,72],[33,73,33,74],[33,75,33,76],[37,72,37,78],[38,22,38,37],[38,38,38,40],[38,41,38,44],[38,45,38,47],[38,48,38,53],[38,54,38,61],[38,72,38,78],[36,54,36,61],[36,62,36,65],[36,66,36,71],[36,72,36,78],[37,22,37,37],[37,38,37,40],[37,41,37,44],[37,45,37,47],[37,48,37,53],[37,54,37,61],[39,72,39,78],[40,22,40,37],[40,38,40,40],[40,41,40,44],[40,45,40,47],[40,48,40,53],[40,54,40,61],[40,72,40,78],[39,22,39,37],[39,38,39,40],[39,41,39,44],[39,45,39,47],[39,48,39,53],[39,54,39,61],[41,72,41,78],[42,22,42,37],[42,38,42,40],[42,41,42,44],[42,45,42,47],[42,48,42,53],[42,54,42,61],[42,72,42,78],[41,22,41,37],[41,38,41,40],[41,41,41,44],[41,45,41,47],[41,48,41,53],[41,54,41,61],[43,72,43,78],[44,22,44,37],[44,38,44,40],[44,41,44,44],[44,45,44,47],[44,48,44,53],[44,54,44,61],[44,72,44,78],[43,22,43,37],[43,38,43,40],[43,41,43,44],[43,45,43,47],[43,48,43,53],[43,54,43,61],[45,72,45,78],[46,22,46,37],[46,38,46,40],[46,41,46,44],[46,45,46,47],[46,48,46,53],[46,54,46,61],[46,72,46,78],[45,22,45,37],[45,38,45,40],[45,41,45,44],[45,45,45,47],[45,48,45,53],[45,54,45,61],[47,72,47,78],[48,22,48,37],[48,38,48,40],[48,41,48,44],[48,45,48,47],[48,48,48,53],[48,54,48,61],[48,72,48,78],[47,22,47,37],[47,38,47,40],[47,41,47,44],[47,45,47,47],[47,48,47,53],[47,54,47,61],[49,72,49,78],[50,22,50,37],[50,38,50,40],[50,41,50,44],[50,45,50,47],[50,48,50,53],[50,54,50,61],[50,72,50,78],[49,22,49,37],[49,38,49,40],[49,41,49,44],[49,45,49,47],[49,48,49,53],[49,54,49,61],[51,72,51,78],[52,22,52,37],[52,38,52,40],[52,41,52,44],[52,45,52,47],[52,48,52,53],[52,54,52,61],[52,72,52,78],[51,22,51,37],[51,38,51,40],[51,41,51,44],[51,45,51,47],[51,48,51,53],[51,54,51,61],[57,76,57,78],[55,20,55,53],[55,54,55,61],[55,62,55,78],[56,20,56,53],[56,54,56,61],[56,62,56,78],[53,72,53,78],[54,22,54,37],[54,38,54,40],[54,41,54,44],[54,45,54,47],[54,48,54,53],[54,54,54,61],[54,72,54,78],[53,22,53,37],[53,38,53,40],[53,41,53,44],[53,45,53,47],[53,48,53,53],[53,54,53,61]]}
[]
["【取引先控】"]
[null,null,null,null,null,null,null,null,null,null,null,null,null,null,null,null,null,null,null,null,null,null,null,null,null,null,null,null,null,null,null,null,null,null,null,null,null,null,null,null,null,null,null,null,null,null,null,null,null,null,null,null,null,null,"会社名",null,null,null,null,null,{"$f":"IF(協力業者発行請求書P1!Z9=\"\",\"\",協力業者発行請求書P1!Z9)","v":""}]
[null,null,null,null,null,null,null,null,null,null,null,null,null,null,null,null,null,null,null,null,null,null,null,null,null,null,null,null,null,null,null,null,null,null,null,null,null,null,null,null,null,null,null,null,false,null,null,null,null,null,null,null,null,false]
[null,null,null,null,null,null,null,null,null,null,null,null,null,null,null,null,null,null,null,null,null,null,null,null,null,null,null,null,null,null,null,"請求内訳書",null,null,null,null,null,null,null,null,null,null,null,null,"（",null,null,"外注請求分",null,null,null,null,null,null,null,"一般請求分",null,null,null,null,null,"）",null,null,{"$f":"IF(協力業者発行請求書P1!BM4=\"\",\"\",協力業者発行請求書P1!BM4)","v":""},null,null,null,null,"年",null,{"$f":"IF(協力業者発行請求書P1!BT4=\"\",\"\",協力業者発行請求書P1!BT4)","v":""},null,"月",null,{"$f":"IF(協力業者発行請求書P1!BX4=\"\",\"\",協力業者発行請求書P1!BX4)","v":""},null,"日"]
[]
[null,null,null,null,null,null,null,null,null,null,null,null,null,null,null,null,null,null,null,null,"工事コード",null,null,null,null,{"$f":"IF(協力業者発行請求書P1!Z13=\"\",\"\",協力業者発行請求書P1!Z13)","v":""},{"$f":"IF(協力業者発行請求書P1!AA13=\"\",\"\",協力業者発行請求書P1!AA13)","v":""},{"$f":"IF(協力業者発行請求書P1!AB13=\"\",\"\",協力業者発行請求書P1!AB13)","v":""},{"$f":"IF(協力業者発行請求書P1!AC13=\"\",\"\",協力業者発行請求書P1!AC13)","v":""},{"$f":"IF(協力業者発行請求書P1!AD13=\"\",\"\",協力業者発行請求書P1!AD13)","v":""},{"$f":"IF(協力業者発行請求書P1!AE13=\"\",\"\",協力業者発行請求書P1!AE13)","v":""},{"$f":"IF(協力業者発行請求書P1!AF13=\"\",\"\",協力業者発行請求書P1!AF13)","v":""},{"$f":"IF(協力業者発行請求書P1!AG13=\"\",\"\",協力業者発行請求書P1!AG13)","v":""},{"$f":"IF(協力業者発行請求書P1!AH13=\"\",\"\",協力業者発行請求書P1!AH13)","v":""},{"$f":"IF(協力業者発行請求書P1!AI13=\"\",\"\",協力業者発行請求書P1!AI13)","v":""},"工事名",null,null,null,null,null,{"$f":"IF(協力業者発行請求書P1!AP13=\"\",\"\",協力業者発行請求書P1!AP13)","v":""}]
[null,null,null,null,null,null,null,null,null,null,null,null,null,null,null,null,null,null,null,null,"日付",null,"摘　　　要",null,null,null,null,null,null,null,null,null,null,null,null,null,null,null,"税区分",null,null,"数　量",null,null,null,"単 位",null,null,"単　価",null,null,null,null,null,"税抜金額",null,null,null,null,null,null,null,"工種コード",null,null,null,"要素コード",null,null,null,null,null,"備　　考"]
[null,null,null,null,null,null,null,null,null,null,null,null,null,null,null,null,null,null,null,null,null,null,null,null,null,null,null,null,null,null,null,null,null,null,null,null,null,null,null,null,null,null,null,null,null,null,null,null,null,null,null,null,null,null,{"$f":"IF(AP9=\"\",\"\",ROUND(AP9*AW9,0))","v":""}]
[null,null,null,null,null,null,null,null,null,null,null,null,null,null,null,null,null,null,null,null,null,null,null,null,null,null,null,null,null,null,null,null,null,null,null,null,null,null,null,null,null,null,null,null,null,null,null,null,null,null,null,null,null,null,""]
[null,null,null,null,null,null,null,null,null,null,null,null,null,null,null,null,null,null,null,null,null,null,null,null,null,null,null,null,null,null,null,null,null,null,null,null,null,null,null,null,null,null,null,null,null,null,null,null,null,null,null,null,null,null,""]
[null,null,null,null,null,null,null,null,null,null,null,null,null,null,null,null,null,null,null,null,null,null,null,null,null,null,null,null,null,null,null,null,null,null,null,null,null,null,null,null,null,null,null,null,null,null,null,null,null,null,null,null,null,null,""]
[null,null,null,null,null,null,null,null,null,null,null,null,null,null,null,null,null,null,null,null,null,null,null,null,null,null,null,null,null,null,null,null,null,null,null,null,null,null,null,null,null,null,null,null,null,null,null,null,null,null,null,null,null,null,""]
[null,null,null,null,null,null,null,null,null,null,null,null,null,null,null,null,null,null,null,null,null,null,null,null,null,null,null,null,null,null,null,null,null,null,null,null,null,null,null,null,null,null,null,null,null,null,null,null,null,null,null,null,null,null,""]
[null,null,null,null,null,null,null,null,null,null,null,null,null,null,null,null,null,null,null,null,null,null,null,null,null,null,null,null,null,null,null,null,null,null,null,null,null,null,null,null,null,null,null,null,null,null,null,null,null,null,null,null,null,null,""]
[null,null,null,null,null,null,null,null,null,null,null,null,null,null,null,null,null,null,null,null,null,null,null,null,null,null,null,null,null,null,null,null,null,null,null,null,null,null,null,null,null,null,null,null,null,null,null,null,null,null,null,null,null,null,""]
[null,null,null,null,null,null,null,null,null,null,null,null,null,null,null,null,null,null,null,null,null,null,null,null,null,null,null,null,null,null,null,null,null,null,null,null,null,null,null,null,null,null,null,null,null,null,null,null,null,null,null,null,null,null,""]
[null,null,null,null,null,null,null,null,null,null,null,null,null,null,null,null,null,null,null,null,null,null,null,null,null,null,null,null,null,null,null,null,null,null,null,null,null,null,null,null,null,null,null,null,null,null,null,null,null,null,null,null,null,null,""]
[null,null,null,null,null,null,null,null,null,null,null,null,null,null,null,null,null,null,null,null,null,null,null,null,null,null,null,null,null,null,null,null,null,null,null,null,null,null,null,null,null,null,null,null,null,null,null,null,null,null,null,null,null,null,""]
[null,null,null,null,null,null,null,null,null,null,null,null,null,null,null,null,null,null,null,null,null,null,null,null,null,null,null,null,null,null,null,null,null,null,null,null,null,null,null,null,null,null,null,null,null,null,null,null,null,null,null,null,null,null,""]
[null,null,null,null,null,null,null,null,null,null,null,null,null,null,null,null,null,null,null,null,null,null,null,null,null,null,null,null,null,null,null,null,null,null,null,null,null,null,null,null,null,null,null,null,null,null,null,null,null,null,null,null,null,null,""]
[null,null,null,null,null,null,null,null,null,null,null,null,null,null,null,null,null,null,null,null,null,null,null,null,null,null,null,null,null,null,null,null,null,null,null,null,null,null,null,null,null,null,null,null,null,null,null,null,null,null,null,null,null,null,""]
[null,null,null,null,null,null,null,null,null,null,null,null,null,null,null,null,null,null,null,null,null,null,null,null,null,null,null,null,null,null,null,null,null,null,null,null,null,null,null,null,null,null,null,null,null,null,null,null,null,null,null,null,null,null,"",null,null,null,null,null,null,null,null,null,null,null,null,null,null,null,null,null,null,null,null,null,null,null,null,null,null,"[●計算用項目]"]
[null,null,null,null,null,null,null,null,null,null,null,null,null,null,null,null,null,null,null,null,null,null,null,null,null,null,null,null,null,null,null,null,null,null,null,null,null,null,null,null,null,null,null,null,null,null,null,null,null,null,null,null,null,null,""]
[null,null,null,null,null,null,null,null,null,null,null,null,null,null,null,null,null,null,null,null,null,null,null,null,null,null,null,null,null,null,null,null,null,null,null,null,null,null,null,null,null,null,null,null,null,null,null,null,null,null,null,null,null,null,"",null,null,null,null,null,null,null,null,null,null,null,null,null,null,null,null,null,null,null,null,null,null,null,null,null,null,"　　　【税抜金額合計】　(a)",null,null,null,null,null,null,null,null,null,null,{"$f":"SUM(CO26:CV28)","v":0}]
[null,null,null,null,null,null,null,null,null,null,null,null,null,null,null,null,null,null,null,null,null,null,null,null,null,null,null,null,null,null,null,null,null,null,null,null,null,null,null,null,null,null,null,null,null,null,null,null,null,null,null,null,null,null,"",null,null,null,null,null,null,null,null,null,null,null,null,null,null,null,null,null,null,null,null,null,null,null,null,null,null,null,null,"　　　非課税対象",null,null,null,null,null,null,null,null,{"$f":"SUMIF($AM$9:$AO$26,\"非\",$BC$9:$BJ$26)","v":0}]
[null,null,null,null,null,null,null,null,null,null,null,null,null,null,null,null,null,null,null,null,"税抜金額小計   ",null,null,null,null,null,null,null,null,null,null,null,null,null,null,null,null,null,null,null,null,null,null,null,null,null,null,null,null,null,null,null,null,null,{"$f":"IF(BC9=\"\",\"\",SUM(BC9:BJ26))","v":""},null,null,null,null,null,null,null,null,null,null,null,null,null,null,null,null,null,null,null,null,null,null,null,null,null,null,null,null,"　 ※ ８％対象",null,null,null,null,null,null,null,null,{"$f":"SUMIF($AM$9:$AO$26,\"※\",$BC$9:$BJ$26)","v":0}]
[null,null,null,null,null,null,null,null,null,null,null,null,null,null,null,null,null,null,null,null,"税抜金額合計(a)",null,null,null,null,null,null,null,null,null,null,null,null,null,null,null,null,null,null,null,null,null,null,null,null,null,null,null,null,null,null,null,null,null,{"$f":"IF(請求内訳書P4!BC9=\"\",SUM(協力業者発行請求書P1!BC27,請求内訳書P2!BC27,請求内訳書P3!BC27),\"\")","v":0},null,null,null,null,null,null,null,"　※ 軽減税率対象項目",null,null,null,null,null,null,null,null,null,null,null,null,null,null,null,null,null,null,null,null,"　 　１０％対象",null,null,null,null,null,null,null,null,{"$f":"SUMIF($AM$9:$AO$26,\"\",$BC$9:$BJ$26)","v":0}]
[null,null,null,null,null,null,null,null,null,null,null,null,null,null,null,null,null,null,null,null,null,null,null,null,null,null,null,null,null,null,null,null,null,null,null,null,null,null,null,null,null,null,null,null,null,null,null,null,null,null,null,null,null,null,null,null,null,null,null,null,null,null,null,null,null,null,null,null,null,null,null,null,null,null,null,null,"P3"]
[]
["【提　出　用】"]
[null,null,null,null,null,null,null,null,null,null,null,null,null,null,null,null,null,null,null,null,null,null,null,null,null,null,null,null,null,null,null,null,null,null,null,null,null,null,null,null,null,null,null,null,null,null,null,null,null,null,null,null,null,null,"会社名",null,null,null,null,null,{"$f":"IF(BI3=\"\",\"\",BI3)","v":""}]
[]
[null,null,null,null,null,null,null,null,null,null,null,null,null,null,null,null,null,null,null,null,null,null,null,null,null,null,null,null,null,null,null,"請求内訳書",null,null,null,null,null,null,null,null,null,null,null,null,"（",null,null,"外注請求分",null,null,null,null,null,null,null,"一般請求分",null,null,null,null,null,"）",null,null,{"$f":"IF(BM5=\"\",\"\",BM5)","v":""},null,null,null,null,"年",null,{"$f":"IF(BT5=\"\",\"\",BT5)","v":""},null,"月",null,{"$f":"IF(BX5=\"\",\"\",BX5)","v":""},null,"日"]
[]
[null,null,null,null,null,null,null,null,null,null,null,null,null,null,null,null,null,null,null,null,"工事コード",null,null,null,null,{"$f":"IF(Z7=\"\",\"\",Z7)","v":""},{"$f":"IF(AA7=\"\",\"\",AA7)","v":""},"","","","","","","","","工事名",null,null,null,null,null,{"$f":"IF(AP7=\"\",\"\",AP7)","v":""}]
[null,null,null,null,null,null,null,null,null,null,null,null,null,null,null,null,null,null,null,null,"日付",null,"摘　　　要",null,null,null,null,null,null,null,null,null,null,null,null,null,null,null,"税区分",null,null,"数　量",null,null,null,"単 位",null,null,"単　価",null,null,null,null,null,"税抜金額",null,null,null,null,null,null,null,"工種コード",null,null,null,"要素コード",null,null,null,null,null,"備　　考"]
[null,null,null,null,null,null,null,null,null,null,null,null,null,null,null,null,null,null,null,null,{"$f":"IF(U9=\"\",\"\",U9)","v":""},{"$f":"IF(V9=\"\",\"\",V9)","v":""},{"$f":"IF(W9=\"\",\"\",W9)","v":""},null,null,null,null,null,null,null,null,null,null,null,null,null,null,null,{"$f":"IF(AM9=\"\",\"\",AM9)","v":""},null,null,{"$f":"IF(AP9=\"\",\"\",AP9)","v":""},null,null,null,{"$f":"IF(AT9=\"\",\"\",AT9)","v":""},null,null,{"$f":"IF(AW9=\"\",\"\",AW9)","v":""},null,null,null,null,null,{"$f":"IF(BC9=\"\",\"\",BC9)","v":""}]
[null,null,null,null,null,null,null,null,null,null,null,null,null,null,null,null,null,null,null,null,{"$f":"IF(U10=\"\",\"\",U10)","v":""},"","",null,null,null,null,null,null,null,null,null,null,null,null,null,null,null,{"$f":"IF(AM10=\"\",\"\",AM10)","v":""},null,null,{"$f":"IF(AP10=\"\",\"\",AP10)","v":""},null,null,null,{"$f":"IF(AT10=\"\",\"\",AT10)","v":""},null,null,{"$f":"IF(AW10=\"\",\"\",AW10)","v":""},null,null,null,null,null,{"$f":"IF(BC10=\"\",\"\",BC10)","v":""}]
[null,null,null,null,null,null,null,null,null,null,null,null,null,null,null,null,null,null,null,null,"","","",null,null,null,null,null,null,null,null,null,null,null,null,null,null,null,"",null,null,"",null,null,null,"",null,null,"",null,null,null,null,null,""]
[null,null,null,null,null,null,null,null,null,null,null,null,null,null,null,null,null,null,null,null,"","","",null,null,null,null,null,null,null,null,null,null,null,null,null,null,null,"",null,null,"",null,null,null,"",null,null,"",null,null,null,null,null,""]
[null,null,null,null,null,null,null,null,null,null,null,null,null,null,null,null,null,null,null,null,"","","",null,null,null,null,null,null,null,null,null,null,null,null,null,null,null,"",null,null,"",null,null,null,"",null,null,"",null,null,null,null,null,""]
[null,null,null,null,null,null,null,null,null,null,null,null,null,null,null,null,null,null,null,null,"","","",null,null,null,null,null,null,null,null,null,null,null,null,null,null,null,"",null,null,"",null,null,null,"",null,null,"",null,null,null,null,null,""]
[null,null,null,null,null,null,null,null,null,null,null,null,null,null,null,null,null,null,null,null,"","","",null,null,null,null,null,null,null,null,null,null,null,null,null,null,null,"",null,null,"",null,null,null,"",null,null,"",null,null,null,null,null,""]
[null,null,null,null,null,null,null,null,null,null,null,null,null,null,null,null,null,null,null,null,"","","",null,null,null,null,null,null,null,null,null,null,null,null,null,null,null,"",null,null,"",null,null,null,"",null,null,"",null,null,null,null,null,""]
[null,null,null,null,null,null,null,null,null,null,null,null,null,null,null,null,null,null,null,null,"","","",null,null,null,null,null,null,null,null,null,null,null,null,null,null,null,"",null,null,"",null,null,null,"",null,null,"",null,null,null,null,null,""]
[null,null,null,null,null,null,null,null,null,null,null,null,null,null,null,null,null,null,null,null,"","","",null,null,null,null,null,null,null,null,null,null,null,null,null,null,null,"",null,null,"",null,null,null,"",null,null,"",null,null,null,null,null,""]
[null,null,null,null,null,null,null,null,null,null,null,null,null,null,null,null,null,null,null,null,"","","",null,null,null,null,null,null,null,null,null,null,null,null,null,null,null,"",null,null,"",null,null,null,"",null,null,"",null,null,null,null,null,""]
[null,null,null,null,null,null,null,null,null,null,null,null,null,null,null,null,null,null,null,null,"","","",null,null,null,null,null,null,null,null,null,null,null,null,null,null,null,"",null,null,"",null,null,null,"",null,null,"",null,null,null,null,null,""]
[null,null,null,null,null,null,null,null,null,null,null,null,null,null,null,null,null,null,null,null,"","","",null,null,null,null,null,null,null,null,null,null,null,null,null,null,null,"",null,null,"",null,null,null,"",null,null,"",null,null,null,null,null,""]
[null,null,null,null,null,null,null,null,null,null,null,null,null,null,null,null,null,null,null,null,"","","",null,null,null,null,null,null,null,null,null,null,null,null,null,null,null,"",null,null,"",null,null,null,"",null,null,"",null,null,null,null,null,""]
[null,null,null,null,null,null,null,null,null,null,null,null,null,null,null,null,null,null,null,null,"","","",null,null,null,null,null,null,null,null,null,null,null,null,null,null,null,"",null,null,"",null,null,null,"",null,null,"",null,null,null,null,null,""]
[null,null,null,null,null,null,null,null,null,null,null,null,null,null,null,null,null,null,null,null,"","","",null,null,null,null,null,null,null,null,null,null,null,null,null,null,null,"",null,null,"",null,null,null,"",null,null,"",null,null,null,null,null,""]
[null,null,null,null,null,null,null,null,null,null,null,null,null,null,null,null,null,null,null,null,"","","",null,null,null,null,null,null,null,null,null,null,null,null,null,null,null,"",null,null,"",null,null,null,"",null,null,"",null,null,null,null,null,""]
[null,null,null,null,null,null,null,null,null,null,null,null,null,null,null,null,null,null,null,null,{"$f":"IF(U26=\"\",\"\",U26)","v":""},"","",null,null,null,null,null,null,null,null,null,null,null,null,null,null,null,"",null,null,"",null,null,null,"",null,null,"",null,null,null,null,null,""]
[null,null,null,null,null,null,null,null,null,null,null,null,null,null,null,null,null,null,null,null,"税抜金額小計   ",null,null,null,null,null,null,null,null,null,null,null,null,null,null,null,null,null,null,null,null,null,null,null,null,null,null,null,null,null,null,null,null,null,""]
[null,null,null,null,null,null,null,null,null,null,null,null,null,null,null,null,null,null,null,null,"税抜金額合計(a)",null,null,null,null,null,null,null,null,null,null,null,null,null,null,null,null,null,null,null,null,null,null,null,null,null,null,null,null,null,null,null,null,null,0,null,null,null,null,null,null,null,"　※ 軽減税率対象項目"]
[null,null,null,null,null,null,null,null,null,null,null,null,null,null,null,null,null,null,null,null,null,null,null,null,null,null,null,null,null,null,null,null,null,null,null,null,null,null,null,null,null,null,null,null,null,null,null,null,null,null,null,null,null,null,null,null,null,null,null,null,null,null,null,null,null,null,null,null,null,null,null,null,null,null,null,null,"P3"]

{"sheet":"請求内訳書P4","index":6,"n_rows":58,"n_cols":93,"rows_kept":58,"cut":false,"hidden":false,"merged":[[28,76,28,78],[7,72,7,78],[10,72,10,78],[8,66,25,71],[8,72,8,78],[9,72,9,78],[11,72,11,78],[15,72,15,78],[17,72,17,78],[19,72,19,78],[21,72,21,78],[23,72,23,78],[1,0,1,14],[4,31,4,43],[4,45,4,46],[4,47,4,52],[4,53,4,54],[4,55,4,60],[2,60,2,78],[6,20,6,24],[6,35,6,40],[6,41,6,78],[2,54,2,59],[4,64,4,68],[4,69,4,70],[4,71,4,72],[4,73,4,74],[4,75,4,76],[4,77,4,78],[7,20,7,21],[7,22,7,37],[7,38,7,40],[7,41,7,44],[7,45,7,47],[7,48,7,53],[7,54,7,61],[7,62,7,65],[7,66,7,71],[8,22,8,37],[8,38,8,40],[8,41,8,44],[8,45,8,47],[8,48,8,53],[8,54,8,61],[8,62,25,65],[10,38,10,40],[10,41,10,44],[10,45,10,47],[10,48,10,53],[10,54,10,61],[11,54,11,61],[9,22,9,37],[9,38,9,40],[9,41,9,44],[9,45,9,47],[9,48,9,53],[9,54,9,61],[10,22,10,37],[12,22,12,37],[12,38,12,40],[12,41,12,44],[12,45,12,47],[12,48,12,53],[12,54,12,61],[12,72,12,78],[11,22,11,37],[11,38,11,40],[11,41,11,44],[11,45,11,47],[11,48,11,53],[13,72,13,78],[14,22,14,37],[14,38,14,40],[14,41,14,44],[14,45,14,47],[14,48,14,53],[14,54,14,61],[14,72,14,78],[13,22,13,37],[13,38,13,40],[13,41,13,44],[13,45,13,47],[13,48,13,53],[13,54,13,61],[16,22,16,37],[16,38,16,40],[16,41,16,44],[16,45,16,47],[16,48,16,53],[16,54,16,61],[16,72,16,78],[15,22,15,37],[15,38,15,40],[15,41,15,44],[15,45,15,47],[15,48,15,53],[15,54,15,61],[18,22,18,37],[18,38,18,40],[18,41,18,44],[18,45,18,47],[18,48,18,53],[18,54,18,61],[18,72,18,78],[17,22,17,37],[17,38,17,40],[17,41,17,44],[17,45,17,47],[17,48,17,53],[17,54,17,61],[20,22,20,37],[20,38,20,40],[20,41,20,44],[20,45,20,47],[20,48,20,53],[20,54,20,61],[20,72,20,78],[19,22,19,37],[19,38,19,40],[19,41,19,44],[19,45,19,47],[19,48,19,53],[19,54,19,61],[22,22,22,37],[22,38,22,40],[22,41,22,44],[22,45,22,47],[22,48,22,53],[22,54,22,61],[22,72,22,78],[21,22,21,37],[21,38,21,40],[21,41,21,44],[21,45,21,47],[21,48,21,53],[21,54,21,61],[24,41,24,44],[24,45,24,47],[24,48,24,53],[24,54,24,61],[24,72,24,78],[23,22,23,37],[23,38,23,40],[23,41,23,44],[23,45,23,47],[23,48,23,53],[23,54,23,61],[24,81,24,91],[24,92,24,99],[25,22,25,37],[25,38,25,40],[25,41,25,44],[25,45,25,47],[25,48,25,53],[25,54,25,61],[25,72,25,78],[25,81,27,82],[27,20,27,53],[27,54,27,61],[27,62,27,78],[27,83,27,91],[27,92,27,99],[25,83,25,91],[25,92,25,99],[26,20,26,53],[26,54,26,61],[26,62,26,78],[26,83,26,91],[26,92,26,99],[24,22,24,37],[24,38,24,40],[30,0,30,14],[33,77,33,78],[35,20,35,24],[35,35,35,40],[35,41,35,78],[33,31,33,43],[33,45,33,46],[33,47,33,52],[33,53,33,54],[33,55,33,60],[33,64,33,68],[33,69,33,70],[31,60,31,78],[31,54,31,59],[36,20,36,21],[36,22,36,37],[36,38,36,40],[36,41,36,44],[36,45,36,47],[36,48,36,53],[33,71,33,72],[33,73,33,74],[33,75,33,76],[37,72,37,78],[38,22,38,37],[38,38,38,40],[38,41,38,44],[38,45,38,47],[38,48,38,53],[38,54,38,61],[38,72,38,78],[36,54,36,61],[36,62,36,65],[36,66,36,71],[36,72,36,78],[37,22,37,37],[37,38,37,40],[37,41,37,44],[37,45,37,47],[37,48,37,53],[37,54,37,61],[39,72,39,78],[40,22,40,37],[40,38,40,40],[40,41,40,44],[40,45,40,47],[40,48,40,53],[40,54,40,61],[40,72,40,78],[39,22,39,37],[39,38,39,40],[39,41,39,44],[39,45,39,47],[39,48,39,53],[39,54,39,61],[41,72,41,78],[42,22,42,37],[42,38,42,40],[42,41,42,44],[42,45,42,47],[42,48,42,53],[42,54,42,61],[42,72,42,78],[41,22,41,37],[41,38,41,40],[41,41,41,44],[41,45,41,47],[41,48,41,53],[41,54,41,61],[43,72,43,78],[44,22,44,37],[44,38,44,40],[44,41,44,44],[44,45,44,47],[44,48,44,53],[44,54,44,61],[44,72,44,78],[43,22,43,37],[43,38,43,40],[43,41,43,44],[43,45,43,47],[43,48,43,53],[43,54,43,61],[45,72,45,78],[46,22,46,37],[46,38,46,40],[46,41,46,44],[46,45,46,47],[46,48,46,53],[46,54,46,61],[46,72,46,78],[45,22,45,37],[45,38,45,40],[45,41,45,44],[45,45,45,47],[45,48,45,53],[45,54,45,61],[47,72,47,78],[48,22,48,37],[48,38,48,40],[48,41,48,44],[48,45,48,47],[48,48,48,53],[48,54,48,61],[48,72,48,78],[47,22,47,37],[47,38,47,40],[47,41,47,44],[47,45,47,47],[47,48,47,53],[47,54,47,61],[49,72,49,78],[50,22,50,37],[50,38,50,40],[50,41,50,44],[50,45,50,47],[50,48,50,53],[50,54,50,61],[50,72,50,78],[49,22,49,37],[49,38,49,40],[49,41,49,44],[49,45,49,47],[49,48,49,53],[49,54,49,61],[51,72,51,78],[52,22,52,37],[52,38,52,40],[52,41,52,44],[52,45,52,47],[52,48,52,53],[52,54,52,61],[52,72,52,78],[51,22,51,37],[51,38,51,40],[51,41,51,44],[51,45,51,47],[51,48,51,53],[51,54,51,61],[57,76,57,78],[55,20,55,53],[55,54,55,61],[55,62,55,78],[56,20,56,53],[56,54,56,61],[56,62,56,78],[53,72,53,78],[54,22,54,37],[54,38,54,40],[54,41,54,44],[54,45,54,47],[54,48,54,53],[54,54,54,61],[54,72,54,78],[53,22,53,37],[53,38,53,40],[53,41,53,44],[53,45,53,47],[53,48,53,53],[53,54,53,61]]}
[]
["【取引先控】"]
[null,null,null,null,null,null,null,null,null,null,null,null,null,null,null,null,null,null,null,null,null,null,null,null,null,null,null,null,null,null,null,null,null,null,null,null,null,null,null,null,null,null,null,null,null,null,null,null,null,null,null,null,null,null,"会社名",null,null,null,null,null,{"$f":"IF(協力業者発行請求書P1!Z9=\"\",\"\",協力業者発行請求書P1!Z9)","v":""}]
[null,null,null,null,null,null,null,null,null,null,null,null,null,null,null,null,null,null,null,null,null,null,null,null,null,null,null,null,null,null,null,null,null,null,null,null,null,null,null,null,null,null,null,null,false,null,null,null,null,null,null,null,null,false]
[null,null,null,null,null,null,null,null,null,null,null,null,null,null,null,null,null,null,null,null,null,null,null,null,null,null,null,null,null,null,null,"請求内訳書",null,null,null,null,null,null,null,null,null,null,null,null,"（",null,null,"外注請求分",null,null,null,null,null,null,null,"一般請求分",null,null,null,null,null,"）",null,null,{"$f":"IF(協力業者発行請求書P1!BM4=\"\",\"\",協力業者発行請求書P1!BM4)","v":""},null,null,null,null,"年",null,{"$f":"IF(協力業者発行請求書P1!BT4=\"\",\"\",協力業者発行請求書P1!BT4)","v":""},null,"月",null,{"$f":"IF(協力業者発行請求書P1!BX4=\"\",\"\",協力業者発行請求書P1!BX4)","v":""},null,"日"]
[]
[null,null,null,null,null,null,null,null,null,null,null,null,null,null,null,null,null,null,null,null,"工事コード",null,null,null,null,{"$f":"IF(協力業者発行請求書P1!Z13=\"\",\"\",協力業者発行請求書P1!Z13)","v":""},{"$f":"IF(協力業者発行請求書P1!AA13=\"\",\"\",協力業者発行請求書P1!AA13)","v":""},{"$f":"IF(協力業者発行請求書P1!AB13=\"\",\"\",協力業者発行請求書P1!AB13)","v":""},{"$f":"IF(協力業者発行請求書P1!AC13=\"\",\"\",協力業者発行請求書P1!AC13)","v":""},{"$f":"IF(協力業者発行請求書P1!AD13=\"\",\"\",協力業者発行請求書P1!AD13)","v":""},{"$f":"IF(協力業者発行請求書P1!AE13=\"\",\"\",協力業者発行請求書P1!AE13)","v":""},{"$f":"IF(協力業者発行請求書P1!AF13=\"\",\"\",協力業者発行請求書P1!AF13)","v":""},{"$f":"IF(協力業者発行請求書P1!AG13=\"\",\"\",協力業者発行請求書P1!AG13)","v":""},{"$f":"IF(協力業者発行請求書P1!AH13=\"\",\"\",協力業者発行請求書P1!AH13)","v":""},{"$f":"IF(協力業者発行請求書P1!AI13=\"\",\"\",協力業者発行請求書P1!AI13)","v":""},"工事名",null,null,null,null,null,{"$f":"IF(協力業者発行請求書P1!AP13=\"\",\"\",協力業者発行請求書P1!AP13)","v":""}]
[null,null,null,null,null,null,null,null,null,null,null,null,null,null,null,null,null,null,null,null,"日付",null,"摘　　　要",null,null,null,null,null,null,null,null,null,null,null,null,null,null,null,"税区分",null,null,"数　量",null,null,null,"単 位",null,null,"単　価",null,null,null,null,null,"税抜金額",null,null,null,null,null,null,null,"工種コード",null,null,null,"要素コード",null,null,null,null,null,"備　　考"]
[null,null,null,null,null,null,null,null,null,null,null,null,null,null,null,null,null,null,null,null,null,null,null,null,null,null,null,null,null,null,null,null,null,null,null,null,null,null,null,null,null,null,null,null,null,null,null,null,null,null,null,null,null,null,{"$f":"IF(AP9=\"\",\"\",ROUND(AP9*AW9,0))","v":""}]
[null,null,null,null,null,null,null,null,null,null,null,null,null,null,null,null,null,null,null,null,null,null,null,null,null,null,null,null,null,null,null,null,null,null,null,null,null,null,null,null,null,null,null,null,null,null,null,null,null,null,null,null,null,null,""]
[null,null,null,null,null,null,null,null,null,null,null,null,null,null,null,null,null,null,null,null,null,null,null,null,null,null,null,null,null,null,null,null,null,null,null,null,null,null,null,null,null,null,null,null,null,null,null,null,null,null,null,null,null,null,""]
[null,null,null,null,null,null,null,null,null,null,null,null,null,null,null,null,null,null,null,null,null,null,null,null,null,null,null,null,null,null,null,null,null,null,null,null,null,null,null,null,null,null,null,null,null,null,null,null,null,null,null,null,null,null,""]
[null,null,null,null,null,null,null,null,null,null,null,null,null,null,null,null,null,null,null,null,null,null,null,null,null,null,null,null,null,null,null,null,null,null,null,null,null,null,null,null,null,null,null,null,null,null,null,null,null,null,null,null,null,null,""]
[null,null,null,null,null,null,null,null,null,null,null,null,null,null,null,null,null,null,null,null,null,null,null,null,null,null,null,null,null,null,null,null,null,null,null,null,null,null,null,null,null,null,null,null,null,null,null,null,null,null,null,null,null,null,""]
[null,null,null,null,null,null,null,null,null,null,null,null,null,null,null,null,null,null,null,null,null,null,null,null,null,null,null,null,null,null,null,null,null,null,null,null,null,null,null,null,null,null,null,null,null,null,null,null,null,null,null,null,null,null,""]
[null,null,null,null,null,null,null,null,null,null,null,null,null,null,null,null,null,null,null,null,null,null,null,null,null,null,null,null,null,null,null,null,null,null,null,null,null,null,null,null,null,null,null,null,null,null,null,null,null,null,null,null,null,null,""]
[null,null,null,null,null,null,null,null,null,null,null,null,null,null,null,null,null,null,null,null,null,null,null,null,null,null,null,null,null,null,null,null,null,null,null,null,null,null,null,null,null,null,null,null,null,null,null,null,null,null,null,null,null,null,""]
[null,null,null,null,null,null,null,null,null,null,null,null,null,null,null,null,null,null,null,null,null,null,null,null,null,null,null,null,null,null,null,null,null,null,null,null,null,null,null,null,null,null,null,null,null,null,null,null,null,null,null,null,null,null,""]
[null,null,null,null,null,null,null,null,null,null,null,null,null,null,null,null,null,null,null,null,null,null,null,null,null,null,null,null,null,null,null,null,null,null,null,null,null,null,null,null,null,null,null,null,null,null,null,null,null,null,null,null,null,null,""]
[null,null,null,null,null,null,null,null,null,null,null,null,null,null,null,null,null,null,null,null,null,null,null,null,null,null,null,null,null,null,null,null,null,null,null,null,null,null,null,null,null,null,null,null,null,null,null,null,null,null,null,null,null,null,""]
[null,null,null,null,null,null,null,null,null,null,null,null,null,null,null,null,null,null,null,null,null,null,null,null,null,null,null,null,null,null,null,null,null,null,null,null,null,null,null,null,null,null,null,null,null,null,null,null,null,null,null,null,null,null,""]
[null,null,null,null,null,null,null,null,null,null,null,null,null,null,null,null,null,null,null,null,null,null,null,null,null,null,null,null,null,null,null,null,null,null,null,null,null,null,null,null,null,null,null,null,null,null,null,null,null,null,null,null,null,null,""]
[null,null,null,null,null,null,null,null,null,null,null,null,null,null,null,null,null,null,null,null,null,null,null,null,null,null,null,null,null,null,null,null,null,null,null,null,null,null,null,null,null,null,null,null,null,null,null,null,null,null,null,null,null,null,"",null,null,null,null,null,null,null,null,null,null,null,null,null,null,null,null,null,null,null,null,null,null,null,null,null,null,"[●計算用項目]"]
[null,null,null,null,null,null,null,null,null,null,null,null,null,null,null,null,null,null,null,null,null,null,null,null,null,null,null,null,null,null,null,null,null,null,null,null,null,null,null,null,null,null,null,null,null,null,null,null,null,null,null,null,null,null,""]
[null,null,null,null,null,null,null,null,null,null,null,null,null,null,null,null,null,null,null,null,null,null,null,null,null,null,null,null,null,null,null,null,null,null,null,null,null,null,null,null,null,null,null,null,null,null,null,null,null,null,null,null,null,null,"",null,null,null,null,null,null,null,null,null,null,null,null,null,null,null,null,null,null,null,null,null,null,null,null,null,null,"　　　【税抜金額合計】　(a)",null,null,null,null,null,null,null,null,null,null,{"$f":"SUM(CO26:CV28)","v":0}]
[null,null,null,null,null,null,null,null,null,null,null,null,null,null,null,null,null,null,null,null,null,null,null,null,null,null,null,null,null,null,null,null,null,null,null,null,null,null,null,null,null,null,null,null,null,null,null,null,null,null,null,null,null,null,"",null,null,null,null,null,null,null,null,null,null,null,null,null,null,null,null,null,null,null,null,null,null,null,null,null,null,null,null,"　　　非課税対象",null,null,null,null,null,null,null,null,{"$f":"SUMIF($AM$9:$AO$26,\"非\",$BC$9:$BJ$26)","v":0}]
[null,null,null,null,null,null,null,null,null,null,null,null,null,null,null,null,null,null,null,null,"税抜金額小計   ",null,null,null,null,null,null,null,null,null,null,null,null,null,null,null,null,null,null,null,null,null,null,null,null,null,null,null,null,null,null,null,null,null,{"$f":"IF(BC9=\"\",\"\",SUM(BC9:BJ26))","v":""},null,null,null,null,null,null,null,null,null,null,null,null,null,null,null,null,null,null,null,null,null,null,null,null,null,null,null,null,"　 ※ ８％対象",null,null,null,null,null,null,null,null,{"$f":"SUMIF($AM$9:$AO$26,\"※\",$BC$9:$BJ$26)","v":0}]
[null,null,null,null,null,null,null,null,null,null,null,null,null,null,null,null,null,null,null,null,"税抜金額合計(a)",null,null,null,null,null,null,null,null,null,null,null,null,null,null,null,null,null,null,null,null,null,null,null,null,null,null,null,null,null,null,null,null,null,{"$f":"SUM(協力業者発行請求書P1!BC27,請求内訳書P2!BC27,請求内訳書P3!BC27,請求内訳書P4!BC27)","v":0},null,null,null,null,null,null,null,"　※ 軽減税率対象項目",null,null,null,null,null,null,null,null,null,null,null,null,null,null,null,null,null,null,null,null,"　 　１０％対象",null,null,null,null,null,null,null,null,{"$f":"SUMIF($AM$9:$AO$26,\"\",$BC$9:$BJ$26)","v":0}]
[null,null,null,null,null,null,null,null,null,null,null,null,null,null,null,null,null,null,null,null,null,null,null,null,null,null,null,null,null,null,null,null,null,null,null,null,null,null,null,null,null,null,null,null,null,null,null,null,null,null,null,null,null,null,null,null,null,null,null,null,null,null,null,null,null,null,null,null,null,null,null,null,null,null,null,null,"P4"]
[]
["【提　出　用】"]
[null,null,null,null,null,null,null,null,null,null,null,null,null,null,null,null,null,null,null,null,null,null,null,null,null,null,null,null,null,null,null,null,null,null,null,null,null,null,null,null,null,null,null,null,null,null,null,null,null,null,null,null,null,null,"会社名",null,null,null,null,null,{"$f":"IF(BI3=\"\",\"\",BI3)","v":""}]
[]
[null,null,null,null,null,null,null,null,null,null,null,null,null,null,null,null,null,null,null,null,null,null,null,null,null,null,null,null,null,null,null,"請求内訳書",null,null,null,null,null,null,null,null,null,null,null,null,"（",null,null,"外注請求分",null,null,null,null,null,null,null,"一般請求分",null,null,null,null,null,"）",null,null,{"$f":"IF(BM5=\"\",\"\",BM5)","v":""},null,null,null,null,"年",null,{"$f":"IF(BT5=\"\",\"\",BT5)","v":""},null,"月",null,{"$f":"IF(BX5=\"\",\"\",BX5)","v":""},null,"日"]
[]
[null,null,null,null,null,null,null,null,null,null,null,null,null,null,null,null,null,null,null,null,"工事コード",null,null,null,null,{"$f":"IF(Z7=\"\",\"\",Z7)","v":""},{"$f":"IF(AA7=\"\",\"\",AA7)","v":""},"","","","","","","","","工事名",null,null,null,null,null,{"$f":"IF(AP7=\"\",\"\",AP7)","v":""}]
[null,null,null,null,null,null,null,null,null,null,null,null,null,null,null,null,null,null,null,null,"日付",null,"摘　　　要",null,null,null,null,null,null,null,null,null,null,null,null,null,null,null,"税区分",null,null,"数　量",null,null,null,"単 位",null,null,"単　価",null,null,null,null,null,"税抜金額",null,null,null,null,null,null,null,"工種コード",null,null,null,"要素コード",null,null,null,null,null,"備　　考"]
[null,null,null,null,null,null,null,null,null,null,null,null,null,null,null,null,null,null,null,null,{"$f":"IF(U9=\"\",\"\",U9)","v":""},{"$f":"IF(V9=\"\",\"\",V9)","v":""},{"$f":"IF(W9=\"\",\"\",W9)","v":""},null,null,null,null,null,null,null,null,null,null,null,null,null,null,null,{"$f":"IF(AM9=\"\",\"\",AM9)","v":""},null,null,{"$f":"IF(AP9=\"\",\"\",AP9)","v":""},null,null,null,{"$f":"IF(AT9=\"\",\"\",AT9)","v":""},null,null,{"$f":"IF(AW9=\"\",\"\",AW9)","v":""},null,null,null,null,null,{"$f":"IF(BC9=\"\",\"\",BC9)","v":""}]
[null,null,null,null,null,null,null,null,null,null,null,null,null,null,null,null,null,null,null,null,{"$f":"IF(U10=\"\",\"\",U10)","v":""},"","",null,null,null,null,null,null,null,null,null,null,null,null,null,null,null,{"$f":"IF(AM10=\"\",\"\",AM10)","v":""},null,null,{"$f":"IF(AP10=\"\",\"\",AP10)","v":""},null,null,null,{"$f":"IF(AT10=\"\",\"\",AT10)","v":""},null,null,{"$f":"IF(AW10=\"\",\"\",AW10)","v":""},null,null,null,null,null,{"$f":"IF(BC10=\"\",\"\",BC10)","v":""}]
[null,null,null,null,null,null,null,null,null,null,null,null,null,null,null,null,null,null,null,null,"","","",null,null,null,null,null,null,null,null,null,null,null,null,null,null,null,"",null,null,"",null,null,null,"",null,null,"",null,null,null,null,null,""]
[null,null,null,null,null,null,null,null,null,null,null,null,null,null,null,null,null,null,null,null,"","","",null,null,null,null,null,null,null,null,null,null,null,null,null,null,null,"",null,null,"",null,null,null,"",null,null,"",null,null,null,null,null,""]
[null,null,null,null,null,null,null,null,null,null,null,null,null,null,null,null,null,null,null,null,"","","",null,null,null,null,null,null,null,null,null,null,null,null,null,null,null,"",null,null,"",null,null,null,"",null,null,"",null,null,null,null,null,""]
[null,null,null,null,null,null,null,null,null,null,null,null,null,null,null,null,null,null,null,null,"","","",null,null,null,null,null,null,null,null,null,null,null,null,null,null,null,"",null,null,"",null,null,null,"",null,null,"",null,null,null,null,null,""]
[null,null,null,null,null,null,null,null,null,null,null,null,null,null,null,null,null,null,null,null,"","","",null,null,null,null,null,null,null,null,null,null,null,null,null,null,null,"",null,null,"",null,null,null,"",null,null,"",null,null,null,null,null,""]
[null,null,null,null,null,null,null,null,null,null,null,null,null,null,null,null,null,null,null,null,"","","",null,null,null,null,null,null,null,null,null,null,null,null,null,null,null,"",null,null,"",null,null,null,"",null,null,"",null,null,null,null,null,""]
[null,null,null,null,null,null,null,null,null,null,null,null,null,null,null,null,null,null,null,null,"","","",null,null,null,null,null,null,null,null,null,null,null,null,null,null,null,"",null,null,"",null,null,null,"",null,null,"",null,null,null,null,null,""]
[null,null,null,null,null,null,null,null,null,null,null,null,null,null,null,null,null,null,null,null,"","","",null,null,null,null,null,null,null,null,null,null,null,null,null,null,null,"",null,null,"",null,null,null,"",null,null,"",null,null,null,null,null,""]
[null,null,null,null,null,null,null,null,null,null,null,null,null,null,null,null,null,null,null,null,"","","",null,null,null,null,null,null,null,null,null,null,null,null,null,null,null,"",null,null,"",null,null,null,"",null,null,"",null,null,null,null,null,""]
[null,null,null,null,null,null,null,null,null,null,null,null,null,null,null,null,null,null,null,null,"","","",null,null,null,null,null,null,null,null,null,null,null,null,null,null,null,"",null,null,"",null,null,null,"",null,null,"",null,null,null,null,null,""]
[null,null,null,null,null,null,null,null,null,null,null,null,null,null,null,null,null,null,null,null,"","","",null,null,null,null,null,null,null,null,null,null,null,null,null,null,null,"",null,null,"",null,null,null,"",null,null,"",null,null,null,null,null,""]
[null,null,null,null,null,null,null,null,null,null,null,null,null,null,null,null,null,null,null,null,"","","",null,null,null,null,null,null,null,null,null,null,null,null,null,null,null,"",null,null,"",null,null,null,"",null,null,"",null,null,null,null,null,""]
[null,null,null,null,null,null,null,null,null,null,null,null,null,null,null,null,null,null,null,null,"","","",null,null,null,null,null,null,null,null,null,null,null,null,null,null,null,"",null,null,"",null,null,null,"",null,null,"",null,null,null,null,null,""]
[null,null,null,null,null,null,null,null,null,null,null,null,null,null,null,null,null,null,null,null,"","","",null,null,null,null,null,null,null,null,null,null,null,null,null,null,null,"",null,null,"",null,null,null,"",null,null,"",null,null,null,null,null,""]
[null,null,null,null,null,null,null,null,null,null,null,null,null,null,null,null,null,null,null,null,"","","",null,null,null,null,null,null,null,null,null,null,null,null,null,null,null,"",null,null,"",null,null,null,"",null,null,"",null,null,null,null,null,""]
[null,null,null,null,null,null,null,null,null,null,null,null,null,null,null,null,null,null,null,null,{"$f":"IF(U26=\"\",\"\",U26)","v":""},"","",null,null,null,null,null,null,null,null,null,null,null,null,null,null,null,"",null,null,"",null,null,null,"",null,null,"",null,null,null,null,null,""]
[null,null,null,null,null,null,null,null,null,null,null,null,null,null,null,null,null,null,null,null,"税抜金額小計   ",null,null,null,null,null,null,null,null,null,null,null,null,null,null,null,null,null,null,null,null,null,null,null,null,null,null,null,null,null,null,null,null,null,""]
[null,null,null,null,null,null,null,null,null,null,null,null,null,null,null,null,null,null,null,null,"税抜金額合計(a)",null,null,null,null,null,null,null,null,null,null,null,null,null,null,null,null,null,null,null,null,null,null,null,null,null,null,null,null,null,null,null,null,null,0,null,null,null,null,null,null,null,"　※ 軽減税率対象項目"]
[null,null,null,null,null,null,null,null,null,null,null,null,null,null,null,null,null,null,null,null,null,null,null,null,null,null,null,null,null,null,null,null,null,null,null,null,null,null,null,null,null,null,null,null,null,null,null,null,null,null,null,null,null,null,null,null,null,null,null,null,null,null,null,null,null,null,null,null,null,null,null,null,null,null,null,null,"P4"]